Workbook

Sheet Club
F1: Chuisnes | G1: B.O.C. | H1: Crécy | I1: Charpont | J1: Bonneval | K1: Luray | M1: Vichères | N1: Challet - Bailleau | P1: Cloyes | Q1: St G.M. | R1: Bonneval | S1: Yèvres | T1: St Eliph | U1: Blévy M | V1: Challet - B | W1: Cloyes | X1: Charpont | Y1: Chuisnes | Z1: Cheminots | AA1: Cheminots | AB1: B.O.C. | AC1: Ouarville | AD1: Luray | AE1: St G.M. | AF1: La Gauloise | AG1: Gas | AH1: Charpont | AI1: B.O.C. | AJ1: Blévy M | AK1: La Gauloise | AL1: Ouarville | AM1: Luray | AO1: Yèvres | AQ1: Crécy | AR1: St Eliph | AS1: Challet - B | AT1: Vichères | AU1: B.O.C. | AV1: Charpont | AW1: Luray | AX1: La Gauloise | AZ1: Gas | BA1: St Eliph | BB1: TOTAL
B2: Club | C2: nom prénom | D2: concours nbs | E2: =NumCouleur(D2) ->  | F2: 2024-09-01 | G2: 2024-09-07 | H2: 2024-09-08 | I2: 2024-09-14 | J2: 2024-09-15 | K2: 21/09/2024 TRI | L2: 21/09/2024 DM | M2: 22/09/2024 QUA | N2: 28/09/2024 TRI | O2: 28/09/2024 DF | P2: 2024-09-29 | Q2: 2024-10-05 | R2: 2024-10-06 | S2: 2024-10-12 | T2: 2024-10-13 | U2: 2024-10-19 | V2: 2024-10-20 | W2: 2024-10-26 | X2: 2024-10-27 | Y2: 2024-11-02 | Z2: 2024-11-03 | AA2: 2024-11-09 | AB2: 2024-11-10 | AC2: 2024-11-16 | AD2: 2024-11-17 | AE2: 2024-11-23 | AF2: 2024-11-24 | AG2: 2024-11-30 | AH2: 2025-03-01 | AI2: 2025-03-02 | AJ2: 2025-03-08 | AK2: 2025-03-09 | AL2: 2025-03-15 | AM2: 16/03/2025 DOU | AN2: 16/03/2025 DM | AO2: 22/03/2025 DOU | AP2: 22/03/2025 DM | AQ2: 2025-03-23 | AR2: 2025-03-29 | AS2: 2025-04-05 | AT2: 06/04/2025 TRI-M | AU2: 2025-04-12 | AV2: 2025-04-13 | AW2: 2025-04-19 | AX2: 26/04/2025 DOU | AY2: 26/04/2025 DM | AZ2: 2025-04-27 | BA2: 2025-05-03 | BB2: individuel
A3: 1 | B3: BLEVY MAILLEBOIS | C3: BIDARD Philippe | D3: =COUNTIF(F3:BA3,">1") -> 6 | E3: HVS | S3: ANNULÉ | T3: 12 | U3: 15 | V3: 10 | X3: 10 | Y3: 10 | Z3: 10 | BB3: =SUM(F3:BA3) -> 67 | BC3: 2
A4: 2 | B4: BLEVY MAILLEBOIS | C4: BOULAY Christophe | D4: 0 | E4: HAD | BB4: 0 | BC4: 2
A5: 3 | B5: BLEVY MAILLEBOIS | C5: BRETAGNE Fabien | D5: 1 | E5: HAS | U5: 10 | BB5: 10 | BC5: 2
A6: 4 | B6: BLEVY MAILLEBOIS | C6: BURSON Anthony | D6: 3 | E6: HAS | I6: 12 | Q6: 12 | U6: 10 | BB6: 34 | BC6: 2
A7: 5 | B7: BLEVY MAILLEBOIS | C7: DUFOSSE Anthony | D7: 1 | E7: HAS | U7: 10 | BB7: 10 | BC7: 2
A8: 6 | B8: BLEVY MAILLEBOIS | C8: FREMONT Benoît | D8: 12 | E8: HVS | F8: 22 | G8: 20 | H8: 16 | I8: 30 | K8: 10 | N8: 10 | Q8: 20 | T8: 15 | U8: 10 | V8: 10 | Y8: 30 | Z8: 12 | BB8: 205 | BC8: 2
A9: 7 | B9: BLEVY MAILLEBOIS | C9: FREMONT Denis | D9: 9 | E9: HVS | H9: 12 | I9: 10 | K9: 10 | N9: 10 | Q9: 16 | T9: 15 | X9: 10 | Y9: 10 | Z9: 10 | BB9: 103 | BC9: 2
A10: 8 | B10: BLEVY MAILLEBOIS | C10: FREMONT Stéphane | D10: 12 | E10: HAS | F10: 22 | G10: 20 | H10: 16 | I10: 30 | K10: 10 | N10: 10 | Q10: 20 | T10: 15 | U10: 10 | V10: 10 | Y10: 30 | Z10: 12 | BB10: 205 | BC10: 2
A11: 9 | B11: BLEVY MAILLEBOIS | C11: GAJAS Gaspard | D11: 0 | E11: HAS | BB11: 0 | BC11: 2
A12: 10 | B12: BLEVY MAILLEBOIS | C12: GAUTIER Laurent | D12: 5 | E12: HVS | T12: 10 | U12: 10 | V12: 10 | X12: 10 | Y12: 10 | BB12: 50 | BC12: 2
A13: 11 | B13: BLEVY MAILLEBOIS | C13: GILLOT Julien | D13: 3 | E13: HAS | I13: 12 | T13: 10 | U13: 10 | BB13: 32 | BC13: 2
A14: 12 | B14: BLEVY MAILLEBOIS | C14: GILLOT Moïse | D14: 9 | E14: HVS | H14: 12 | I14: 10 | K14: 10 | N14: 10 | Q14: 16 | T14: 15 | X14: 10 | Y14: 10 | Z14: 10 | BB14: 103 | BC14: 2
A15: 13 | B15: BLEVY MAILLEBOIS | C15: GLOTIN Julien | D15: 1 | E15: HAS | Q15: 12 | BB15: 12 | BC15: 2
A16: 14 | B16: BLEVY MAILLEBOIS | C16: GREVIN Kaëlig | D16: 1 | E16: HJS | Q16: 12 | BB16: 12 | BC16: 2
A17: 15 | B17: BLEVY MAILLEBOIS | C17: GREVIN Michel | D17: 11 | E17: HVS | G17: 10 | H17: 10 | I17: 10 | N17: 10 | Q17: 12 | T17: 10 | U17: 15 | V17: 10 | X17: 10 | Y17: 12 | Z17: 10 | BB17: 119 | BC17: 2
A18: 16 | B18: BLEVY MAILLEBOIS | C18: GUGGENBUHL Claude | D18: 3 | E18: HVS | I18: 10 | P18: 10 | U18: 10 | BB18: 30 | BC18: 2
A19: 17 | B19: BLEVY MAILLEBOIS | C19: HANDZICH Maryse | D19: 4 | E19: FVS | U19: 10 | V19: 10 | X19: 10 | Y19: 12 | BB19: 42 | BC19: 2
A20: 18 | B20: BLEVY MAILLEBOIS | C20: JURE Eric | D20: 4 | E20: HVS | N20: 10 | Q20: 16 | T20: 15 | X20: 10 | BB20: 51 | BC20: 2
A21: 19 | B21: BLEVY MAILLEBOIS | C21: LARHANTEC Louis | D21: 3 | E21: HVS | G21: 10 | N21: 10 | U21: 30 | BB21: 50 | BC21: 2
A22: 20 | B22: BLEVY MAILLEBOIS | C22: LAUVRAY Raymonde | D22: 4 | E22: FVD | U22: 10 | V22: 10 | X22: 10 | Y22: 10 | BB22: 40 | BC22: 2
A23: 21 | B23: BLEVY MAILLEBOIS | C23: LEMAIRE Raphael | D23: 5 | E23: HAS | H23: 10 | I23: 10 | N23: 10 | T23: 10 | X23: 10 | BB23: 50 | BC23: 2
A24: 22 | B24: BLEVY MAILLEBOIS | C24: MACHADO Federico | D24: 4 | E24: HVD | T24: 10 | U24: 10 | V24: 10 | X24: 10 | BB24: 40 | BC24: 2
A25: 23 | B25: BLEVY MAILLEBOIS | C25: MAIA Christophe | D25: 10 | E25: HAS | H25: 12 | I25: 12 | K25: 10 | N25: 10 | Q25: 12 | T25: 10 | U25: 10 | X25: 10 | Y25: 10 | Z25: 10 | BB25: 106 | BC25: 2
A26: 24 | B26: BLEVY MAILLEBOIS | C26: MARTIN Antoine | D26: 1 | E26: HAS | U26: 10 | BB26: 10 | BC26: 2
A27: 25 | B27: BLEVY MAILLEBOIS | C27: MARTIN Eric | D27: 9 | E27: HVS | G27: 10 | H27: 10 | N27: 10 | Q27: 12 | T27: 12 | U27: 30 | V27: 10 | Y27: 12 | Z27: 10 | BB27: 116 | BC27: 2
A28: 26 | B28: BLEVY MAILLEBOIS | C28: MARTIN Gaëtan | D28: 6 | E28: HAS | H28: 10 | N28: 10 | T28: 12 | U28: 30 | V28: 10 | Z28: 10 | BB28: 82 | BC28: 2
A29: 27 | B29: BLEVY MAILLEBOIS | C29: MARTIN Pierre | D29: 3 | E29: HAS | H29: 10 | V29: 10 | Z29: 10 | BB29: 30 | BC29: 2
A30: 28 | B30: BLEVY MAILLEBOIS | C30: MOREAU Baptiste | D30: 2 | E30: HAS | I30: 10 | P30: 10 | BB30: 20 | BC30: 2
A31: 29 | B31: BLEVY MAILLEBOIS | C31: MORIN Anthony | D31: 0 | E31: HAS | BB31: 0 | BC31: 2
A32: 30 | B32: BLEVY MAILLEBOIS | C32: SMIESCZAK Thibaut | D32: 3 | E32: HAS | H32: 10 | U32: 15 | Z32: 10 | BB32: 35 | BC32: 2
A33: 31 | B33: BLEVY MAILLEBOIS | C33: TROUILLET Baptiste | D33: 0 | E33: HAS | BB33: 0 | BC33: 2
A34: 32 | B34: BLEVY MAILLEBOIS | C34: VAZQUEZ Baptiste | D34: 8 | E34: HAS | G34: 20 | H34: 16 | K34: 10 | Q34: 20 | U34: 10 | V34: 10 | Y34: 30 | Z34: 12 | BB34: 128 | BC34: 2
A35: 33 | B35: BLEVY MAILLEBOIS | C35: WEISS Julien | D35: =COUNTIF(F35:BA35,">1") -> 2 | E35: HAS | N35: 10 | U35: 10 | BB35: 20 | BC35: 2 | BD35: =SUM(BB3:BB35) -> 1812
A36: 34 | B36: BONNEVAL | C36: BEDOT Frédéric | D36: 3 | E36: HVS | J36: 14 | P36: 10 | W36: 15 | BB36: 39 | BC36: 3
A37: 35 | B37: BONNEVAL | C37: BEDOT Marie Claire | D37: 0 | E37: FVS | BB37: 0 | BC37: 3
A38: 36 | B38: BONNEVAL | C38: BOUILLY Eric | D38: 5 | E38: HVS | J38: 15 | P38: 10 | U38: 10 | W38: 15 | Y38: 10 | BB38: 60 | BC38: 3
A39: 37 | B39: BONNEVAL | C39: BRETON Gilbert | D39: 2 | E39: HVD | J39: 14 | P39: 10 | BB39: 24 | BC39: 3
A40: 38 | B40: BONNEVAL | C40: BRETON Patricia | D40: 1 | E40: FVD | P40: 10 | BB40: 10 | BC40: 3
A41: 39 | B41: BONNEVAL | C41: COUDRAY Sylvain | D41: 2 | E41: HAD | R41: 10 | Y41: 10 | BB41: 20 | BC41: 3
A42: 40 | B42: BONNEVAL | C42: COURTOIS Victor | D42: 2 | E42: HJS | J42: 14 | P42: 10 | BB42: 24 | BC42: 3
A43: 41 | B43: BONNEVAL | C43: DUVIGNEAU Jean François | D43: 1 | E43: HVD | Z43: 12 | BB43: 12 | BC43: 3
A44: 42 | B44: BONNEVAL | C44: FAVRÉ Mickael | D44: 2 | E44: HAD | J44: 16 | R44: 15 | BB44: 31 | BC44: 3
A45: 43 | B45: BONNEVAL | C45: GALLAIS Janny | D45: 4 | E45: HVD | J45: 10 | R45: 10 | W45: 10 | Y45: 10 | BB45: 40 | BC45: 3
A46: 44 | B46: BONNEVAL | C46: LACOSTE Phillippe | D46: 6 | E46: HVD | J46: 15 | P46: 10 | R46: 15 | U46: 10 | W46: 15 | Y46: 10 | BB46: 75 | BC46: 3
A47: 45 | B47: BONNEVAL | C47: LINGET Martine | D47: 3 | E47: FVS | P47: 10 | R47: 10 | W47: 10 | BB47: 30 | BC47: 3
A48: 46 | B48: BONNEVAL | C48: MATHIEU Maxime | D48: 1 | E48: HAS | J48: 16 | BB48: 16 | BC48: 3
A49: 47 | B49: BONNEVAL | C49: MAUGET Bruno | D49: 3 | E49: HVS | J49: 15 | U49: 10 | Y49: 10 | BB49: 35 | BC49: 3
A50: 48 | B50: BONNEVAL | C50: PERRICHOT Denis | D50: 2 | E50: HVS | R50: 15 | Z50: 12 | BB50: 27 | BC50: 3
A51: 49 | B51: BONNEVAL | C51: THOMAS Eric | D51: 3 | E51: HVD | R51: 10 | Y51: 10 | Z51: 12 | BB51: 32 | BC51: 3
A52: 50 | B52: BONNEVAL | C52: VAUGLIN Marcel | D52: 4 | E52: HVD | J52: 10 | P52: 10 | R52: 10 | W52: 10 | BB52: 40 | BC52: 3
A53: 51 | B53: BONNEVAL | C53: VINCENZI Sylvain | D53: 1 | E53: HVS | J53: 16 | BB53: 16 | BC53: 3 | BD53: =SUM(BB36:BB53) -> 531
A54: 52 | B54: BOUGLAINVAL | C54: ALLOUIS Corentin | D54: 14 | E54: HAD | F54: 10 | G54: 15 | H54: 18 | I54: 10 | J54: 10 | K54: 15 | M54: 10 | N54: 10 | P54: 10 | Q54: 10 | R54: 18 | T54: 15 | X54: 10 | Z54: 20 | BB54: 181 | BC54: 4
A55: 53 | B55: BOUGLAINVAL | C55: ALLOUIS Stéphane | D55: 9 | E55: HVS | F55: 20 | G55: 18 | I55: 12 | K55: 15 | M55: 10 | N55: 10 | T55: 15 | X55: 10 | Z55: 10 | BB55: 120 | BC55: 4
A56: 54 | B56: BOUGLAINVAL | C56: BATAYER Gilberte | D56: 0 | E56: FVS | BB56: 0 | BC56: 4
A57: 55 | B57: BOUGLAINVAL | C57: BATAYER Yves | D57: 0 | E57: HVS | BB57: 0 | BC57: 4
A58: 56 | B58: BOUGLAINVAL | C58: BOILLOD Sylvain | D58: 7 | E58: HVS | G58: 10 | K58: 12 | N58: 10 | Q58: 10 | U58: 15 | X58: 10 | Y58: 10 | BB58: 77 | BC58: 4
A59: 57 | B59: BOUGLAINVAL | C59: BREMAUD André | D59: 4 | E59: HVD | H59: 10 | K59: 12 | U59: 10 | V59: 10 | BB59: 42 | BC59: 4
A60: 58 | B60: BOUGLAINVAL | C60: CANALES Corinne | E60: FVD | BB60: 0 | BC60: 4
A61: 59 | B61: BOUGLAINVAL | C61: CAUSERET Gilles | D61: =COUNTIF(F61:BA61,">1") -> 8 | E61: HVD | I61: 10 | J61: 12 | K61: 10 | N61: 10 | P61: 10 | W61: 25 | X61: 10 | Y61: 10 | BB61: 97 | BC61: 4
A62: 60 | B62: BOUGLAINVAL | C62: CHALLE Sébastien | D62: 11 | E62: HAS | F62: 10 | G62: 10 | H62: 10 | I62: 14 | J62: 10 | K62: 10 | M62: 15 | P62: 12 | T62: 10 | V62: 12 | X62: 10 | BB62: 123 | BC62: 4
A63: 61 | B63: BOUGLAINVAL | C63: CHALLE Stéphane | D63: 5 | E63: HAS | G63: 10 | N63: 12 | Q63: 14 | U63: 14 | Y63: 10 | BB63: 60 | BC63: 4
A64: 62 | B64: BOUGLAINVAL | C64: CHARTIER Bernard | D64: 11 | E64: HVS | G64: 25 | H64: 10 | I64: 12 | J64: 10 | N64: 10 | Q64: 12 | U64: 10 | W64: 10 | X64: 10 | Y64: 10 | Z64: 10 | BB64: 129 | BC64: 4
A65: 63 | B65: BOUGLAINVAL | C65: COUELLAUD Walter | D65: 13 | E65: HAS | G65: 10 | I65: 10 | J65: 10 | K65: 10 | M65: 10 | N65: 10 | P65: 10 | Q65: 10 | T65: 10 | V65: 10 | W65: 10 | X65: 10 | Y65: 25 | BB65: 145 | BC65: 4
A66: 64 | B66: BOUGLAINVAL | C66: COUPECHOUX Gérard | D66: 1 | E66: HVS | G66: 20 | BB66: 20 | BC66: 4
A67: 65 | B67: BOUGLAINVAL | C67: CRAMPOND Yannick | D67: 3 | E67: HVD | X67: 10 | Y67: 10 | Z67: 10 | BB67: =SUM(F67:BA67) -> 30 | BC67: 4
A68: 66 | B68: BOUGLAINVAL | C68: CRETON Michel | D68: 10 | E68: HVD | F68: 10 | G68: 10 | I68: 10 | J68: 12 | K68: 10 | Q68: 10 | V68: 10 | W68: 10 | X68: 10 | Y68: 10 | BB68: 102 | BC68: 4
A69: 67 | B69: BOUGLAINVAL | C69: CRETON Renée | D69: 10 | E69: FVD | F69: 10 | G69: 10 | I69: 10 | J69: 12 | K69: 10 | Q69: 10 | V69: 10 | W69: 10 | X69: 10 | Y69: 10 | BB69: 102 | BC69: 4
A70: 68 | B70: BOUGLAINVAL | C70: DENEFF Anne | D70: 8 | E70: FAS | F70: 10 | G70: 15 | L70: 10 | M70: 15 | Q70: 10 | U70: 10 | V70: 10 | Y70: 10 | BB70: 90 | BC70: 4
A71: 69 | B71: BOUGLAINVAL | C71: DENEFF Estéban | D71: 7 | E71: HJS | F71: 10 | G71: 10 | L71: 15 | M71: 15 | Q71: 10 | U71: 10 | V71: 10 | BB71: 80 | BC71: 4
A72: 70 | B72: BOUGLAINVAL | C72: DENEFF Guillaume | D72: 8 | E72: HAS | F72: 10 | G72: 15 | L72: 10 | M72: 15 | Q72: 12 | U72: 10 | V72: 22 | Y72: 10 | BB72: 104 | BC72: 4
A73: 71 | B73: BOUGLAINVAL | C73: DHERVILLIERS Patrice | D73: 4 | E73: HVS | G73: 10 | I73: 10 | N73: 12 | Q73: 10 | BB73: 42 | BC73: 4
A74: 72 | B74: BOUGLAINVAL | C74: ESLAN Pierre | D74: 8 | E74: HVD | I74: 10 | J74: 12 | K74: 10 | N74: 10 | T74: 15 | U74: 10 | W74: 10 | X74: 10 | BB74: 87 | BC74: 4
A75: 73 | B75: BOUGLAINVAL | C75: FABRY Emmanuel | D75: 8 | E75: HVS | G75: 25 | I75: 22 | N75: 10 | P75: 15 | T75: 15 | U75: 14 | X75: 14 | Y75: 15 | BB75: 130 | BC75: 4
A76: 74 | B76: BOUGLAINVAL | C76: FRESNEDA Angelo | D76: 6 | E76: HVD | G76: 10 | I76: 10 | L76: 10 | U76: 10 | V76: 22 | Y76: 10 | BB76: 72 | BC76: 4
A77: 75 | B77: BOUGLAINVAL | C77: GAMMUTO Giovanna | D77: 1 | E77: FAS | M77: 16 | BB77: 16 | BC77: 4
A78: 76 | B78: BOUGLAINVAL | C78: GARGASSON Jacky | D78: 8 | E78: HVD | F78: 20 | G78: 12 | N78: 10 | P78: 10 | U78: 10 | V78: 14 | X78: 10 | Z78: 10 | BB78: 96 | BC78: 4
A79: 77 | B79: BOUGLAINVAL | C79: GARGASSON Patricia | D79: 5 | E79: FVD | F79: 10 | G79: 12 | O79: 15 | P79: 10 | Z79: 10 | BB79: 57 | BC79: 4
A80: 78 | B80: BOUGLAINVAL | C80: GARNIER Michel | D80: 3 | E80: HVS | F80: 10 | G80: 10 | M80: 10 | BB80: 30 | BC80: 4
A81: 79 | B81: BOUGLAINVAL | C81: GASTINEL Patrice | D81: 4 | E81: HVS | G81: 10 | I81: 22 | K81: 15 | N81: 10 | BB81: 57 | BC81: 4
A82: 80 | B82: BOUGLAINVAL | C82: GAUDEFROY Patrice | D82: 7 | E82: HVS | F82: 15 | G82: 20 | K82: 15 | N82: 10 | Q82: 10 | U82: 25 | Y82: 10 | BB82: 105 | BC82: 4
A83: 81 | B83: BOUGLAINVAL | C83: GESTIN Emmanuelle | D83: 6 | E83: FAD | I83: 10 | L83: 10 | O83: 20 | Q83: 12 | V83: 10 | Y83: 10 | BB83: 72 | BC83: 4
A84: 82 | B84: BOUGLAINVAL | C84: GESTIN Jean Philippe | D84: 6 | E84: HVD | I84: 10 | L84: 10 | N84: 10 | U84: 10 | V84: 22 | Y84: 10 | BB84: 72 | BC84: 4
A85: 83 | B85: BOUGLAINVAL | C85: GESTIN Luyana | D85: 2 | E85: FJD | L85: 10 | M85: 10 | BB85: 20 | BC85: 4
A86: 84 | B86: BOUGLAINVAL | C86: GOLLION Stephane | D86: 7 | E86: HAS | G86: 10 | M86: 16 | P86: 10 | T86: 10 | V86: 10 | X86: 10 | Y86: 25 | BB86: 91 | BC86: 4
A87: 85 | B87: BOUGLAINVAL | C87: GOURDAIN Pascal | D87: 1 | E87: HVD | K87: 15 | BB87: 15 | BC87: 4
A88: 86 | B88: BOUGLAINVAL | C88: GUILLAMOT David | D88: 3 | E88: HAS | I88: 10 | J88: 10 | Y88: 15 | BB88: 35 | BC88: 4
A89: 87 | B89: BOUGLAINVAL | C89: HALGRAIN Francis | D89: 3 | E89: HVS | N89: 10 | R89: 18 | W89: 25 | BB89: 53 | BC89: 4
A90: 88 | B90: BOUGLAINVAL | C90: HERY Vincent | D90: 7 | E90: HVS | I90: 22 | J90: 10 | N90: 10 | P90: 15 | T90: 15 | X90: 14 | Y90: 15 | BB90: 101 | BC90: 4
A91: 89 | B91: BOUGLAINVAL | C91: HICGUET Anne-Claire | D91: 9 | E91: FAS | F91: 10 | G91: 10 | H91: 10 | I91: 14 | J91: 10 | P91: 10 | T91: 10 | V91: 12 | X91: 10 | BB91: 96 | BC91: 4
A92: 90 | B92: BOUGLAINVAL | C92: LE BARS Didier | D92: 3 | E92: HVD | G92: 10 | I92: 18 | X92: 10 | BB92: =SUM(F92:BA92) -> 38 | BC92: 4
A93: 91 | B93: BOUGLAINVAL | C93: LE BRIS Fabrice | D93: 15 | E93: HVS | F93: 15 | G93: 18 | J93: 10 | K93: 15 | M93: 10 | N93: 10 | P93: 12 | Q93: 14 | T93: 10 | U93: 25 | V93: 10 | W93: 10 | X93: 10 | Y93: 10 | Z93: 10 | BB93: 189 | BC93: 4
A94: 92 | B94: BOUGLAINVAL | C94: LIBERT Didier | D94: 5 | E94: HAD | G94: 10 | I94: 10 | J94: 12 | K94: 10 | N94: 10 | BB94: 52 | BC94: 4
A95: 93 | B95: BOUGLAINVAL | C95: LOREILLER Bruno | D95: 12 | E95: HVD | F95: 10 | H95: 10 | I95: 10 | K95: 12 | M95: 16 | N95: 10 | Q95: 10 | T95: 15 | U95: 25 | V95: 12 | X95: 10 | Y95: 25 | BB95: 165 | BC95: 4
A96: 94 | B96: BOUGLAINVAL | C96: MACHILS Didier | D96: =COUNTIF(F96:BA96,">1") -> 0 | E96: HVD | BB96: 0 | BC96: 4
A97: 95 | B97: BOUGLAINVAL | C97: MANIEZ Evan | D97: 3 | E97: HJS | H97: 10 | U97: 10 | Y97: 14 | BB97: 34 | BC97: 4
A98: 96 | B98: BOUGLAINVAL | C98: MANIEZ Grégory | D98: 5 | E98: HAS | F98: 15 | H98: 10 | N98: 10 | U98: 10 | Y98: 14 | BB98: 59 | BC98: 4
A99: 97 | B99: BOUGLAINVAL | C99: MANIEZ Hugo | D99: 6 | E99: HAS | H99: 10 | I99: 10 | U99: 10 | W99: 25 | X99: 10 | Y99: 14 | BB99: 79 | BC99: 4
A100: 98 | B100: BOUGLAINVAL | C100: MARTEL Laurent | D100: 3 | E100: HAS | G100: 18 | R100: 18 | V100: 10 | BB100: 46 | BC100: 4
A101: 99 | B101: BOUGLAINVAL | C101: MARTIN Gérard | D101: 11 | E101: HVD | F101: 20 | G101: 12 | J101: 10 | K101: 10 | M101: 10 | N101: 10 | P101: 10 | U101: 15 | V101: 14 | X101: 10 | Z101: 20 | BB101: 141 | BC101: 4
A102: 100 | B102: BOUGLAINVAL | C102: MARTIN Nadine | D102: 10 | E102: FVD | F102: 10 | G102: 10 | J102: 10 | K102: 10 | M102: 10 | O102: 15 | P102: 10 | U102: 15 | X102: 10 | Z102: 20 | BB102: 120 | BC102: 4
A103: 101 | B103: BOUGLAINVAL | C103: MEHANECHE Roger | D103: 8 | E103: HVS | F103: 10 | G103: 10 | I103: 12 | K103: 10 | V103: 10 | X103: 10 | Y103: 10 | Z103: 10 | BB103: 82 | BC103: 4
A104: 102 | B104: BOUGLAINVAL | C104: MENAGER Jean Paul | D104: 8 | E104: HVD | G104: 20 | I104: 10 | N104: 12 | P104: 10 | V104: 14 | X104: 10 | Y104: 10 | Z104: 10 | BB104: 96 | BC104: 4
A105: 103 | B105: BOUGLAINVAL | C105: PENON Damien | D105: 4 | E105: HAS | G105: 25 | J105: 10 | N105: 10 | X105: 14 | BB105: 59 | BC105: 4
A106: 104 | B106: BOUGLAINVAL | C106: POLVE Jacques | D106: 7 | E106: HVD | F106: 10 | G106: 10 | K106: 10 | M106: 16 | T106: 10 | X106: 10 | Y106: 10 | BB106: 76 | BC106: 4
A107: 105 | B107: BOUGLAINVAL | C107: POUPEAU Henri | D107: 1 | E107: HVS | J107: 10 | BB107: 10 | BC107: 4
A108: 106 | B108: BOUGLAINVAL | C108: POUSSET Alexandre | D108: 4 | E108: HAS | G108: 10 | I108: 10 | Q108: 14 | U108: 14 | BB108: 48 | BC108: 4
A109: 107 | B109: BOUGLAINVAL | C109: PREVOST Francoise | D109: 5 | E109: FVD | F109: 10 | H109: 10 | I109: 10 | L109: 15 | Q109: 10 | BB109: 55 | BC109: 4
A110: 108 | B110: BOUGLAINVAL | C110: RANVIER Marcel | D110: 7 | E110: HVD | G110: 10 | I110: 10 | J110: 12 | K110: 10 | Q110: 10 | U110: 10 | X110: 10 | BB110: 72 | BC110: 4
A111: 109 | B111: BOUGLAINVAL | C111: ROLLET Patrick | D111: 7 | E111: HAS | G111: 10 | I111: 10 | K111: 10 | N111: 10 | Q111: 10 | V111: 10 | X111: 10 | BB111: 70 | BC111: 4
A112: 110 | B112: BOUGLAINVAL | C112: SANCHEZ Antoine | D112: =COUNTIF(F112:BA112,">1") -> 0 | E112: HVS | BB112: =SUM(F112:BA112) -> 0 | BC112: 4
A113: 111 | B113: BOUGLAINVAL | C113: TOUTAIN Sylvie | D113: 5 | E113: FVS | G113: 10 | I113: 14 | O113: 20 | V113: 10 | Y113: 10 | BB113: 64 | BC113: 4 | BD113: =SUM(BB54:BB113) -> 4304
A114: 112 | B114: BOULES CLUB CLOYSIEN | C114: ALEXANDRE Marc | D114: =COUNTIF(F114:BA114,">1") -> 0 | E114: HVS | BB114: =SUM(F114:BA114) -> 0 | BC114: 17
A115: 113 | B115: BOULES CLUB CLOYSIEN | C115: ALEXANDRE Maxence | D115: 0 | E115: HAS | BB115: 0 | BC115: 17
A116: 114 | B116: BOULES CLUB CLOYSIEN | C116: BELAN Christophe | D116: 6 | E116: HAS | J116: 10 | K116: 18 | N116: 10 | P116: 10 | U116: 10 | Y116: 10 | BB116: 68 | BC116: 17
A117: 115 | B117: BOULES CLUB CLOYSIEN | C117: BORTOLI cyril | D117: =COUNTIF(F117:BA117,">1") -> 0 | E117: HAS | BB117: 0 | BC117: 17
A118: 116 | B118: BOULES CLUB CLOYSIEN | C118: BOSSOIS Christian | D118: 2 | E118: HAD | V118: 20 | W118: 20 | BB118: 40 | BC118: 17
A119: 117 | B119: BOULES CLUB CLOYSIEN | C119: BOULARD Celia | D119: 1 | E119: FAS | P119: 10 | BB119: 10 | BC119: 17
A120: 118 | B120: BOULES CLUB CLOYSIEN | C120: BOULARD Christophe | D120: 0 | E120: HVS | BB120: 0 | BC120: 17
A121: 119 | B121: BOULES CLUB CLOYSIEN | C121: CAVALLI Hervé | D121: 3 | E121: HAS | P121: 18 | V121: 12 | X121: 10 | BB121: 40 | BC121: 17
A122: 120 | B122: BOULES CLUB CLOYSIEN | C122: CHAUVEAU Denis | D122: 4 | E122: HVS | J122: 25 | P122: 30 | V122: 12 | X122: 10 | BB122: 77 | BC122: 17
A123: 121 | B123: BOULES CLUB CLOYSIEN | C123: FRANCOIS André | D123: 1 | E123: HVD | P123: 10 | BB123: =SUM(F123:BA123) -> 10 | BC123: 17
A124: 122 | B124: BOULES CLUB CLOYSIEN | C124: GAUGUIN Alain | D124: 6 | E124: HAS | N124: 10 | V124: 20 | W124: 20 | X124: 10 | Y124: 10 | Z124: 10 | BB124: 80 | BC124: 17
A125: 123 | B125: BOULES CLUB CLOYSIEN | C125: GERARD Frederique | D125: 9 | E125: HAS | F125: 20 | J125: 22 | L125: 20 | N125: 10 | P125: 18 | T125: 22 | U125: 10 | W125: 30 | Y125: 12 | BB125: 164 | BC125: 17
A126: 124 | B126: BOULES CLUB CLOYSIEN | C126: GERARD MARINE | D126: 6 | E126: FAS | J126: 22 | L126: 15 | O126: 15 | P126: 10 | T126: 12 | U126: 10 | BB126: 84 | BC126: 17
A127: 125 | B127: BOULES CLUB CLOYSIEN | C127: GERARD Marie-Laure | D127: 8 | E127: FAS | J127: 12 | K127: 10 | O127: 22 | P127: 10 | R127: 15 | T127: 12 | U127: 10 | Y127: 12 | BB127: 103 | BC127: 17
A128: 126 | B128: BOULES CLUB CLOYSIEN | C128: GERARD Michel | D128: 6 | E128: HVS | J128: 12 | M128: 12 | N128: 10 | P128: 10 | T128: 10 | Y128: 12 | BB128: =SUM(F128:BA128) -> 66 | BC128: 17
A129: 127 | B129: BOULES CLUB CLOYSIEN | C129: HOUE Jean Pierre | D129: 7 | E129: HVS | J129: 20 | P129: 10 | Q129: 10 | U129: 22 | V129: 14 | W129: 22 | X129: 10 | BB129: 108 | BC129: 17
A130: 128 | B130: BOULES CLUB CLOYSIEN | C130: LALLIOT Clement | D130: =COUNTIF(F130:BA130,">1") -> 4 | E130: HAS | J130: 10 | P130: 16 | T130: 10 | X130: 10 | BB130: =SUM(F130:BA130) -> 46 | BC130: 17
A131: 129 | B131: BOULES CLUB CLOYSIEN | C131: LALLIOT Gildas | D131: 8 | E131: HAS | F131: 20 | H131: 10 | J131: 12 | P131: 10 | R131: 15 | T131: 22 | V131: 10 | X131: 30 | BB131: 129 | BC131: 17
A132: 130 | B132: BOULES CLUB CLOYSIEN | C132: LALLIOT Manon | D132: 6 | E132: FAS | H132: 10 | L132: 20 | O132: 15 | P132: 10 | V132: 10 | Y132: 10 | BB132: 75 | BC132: 17
A133: 131 | B133: BOULES CLUB CLOYSIEN | C133: LALLIOT Priscilla | D133: 7 | E133: FAS | H133: 10 | K133: 10 | O133: 22 | P133: 10 | R133: 10 | T133: 12 | Y133: 10 | BB133: 84 | BC133: 17
A134: 132 | B134: BOULES CLUB CLOYSIEN | C134: LASCAUX Yohann | D134: =COUNTIF(F134:BA134,">1") -> 0 | E134: HAS | BB134: 0 | BC134: 17
A135: 133 | B135: BOULES CLUB CLOYSIEN | C135: MAURICE Marc | D135: 12 | E135: HVS | J135: 20 | M135: 12 | N135: 14 | P135: 12 | Q135: 10 | T135: 10 | U135: 22 | V135: 14 | W135: 22 | X135: 10 | Y135: 10 | Z135: 10 | BB135: =SUM(F135:BA135) -> 166 | BC135: 17
A136: 134 | B136: BOULES CLUB CLOYSIEN | C136: PATEYRON Michel | D136: 11 | E136: HVS | J136: 20 | M136: 12 | P136: 12 | Q136: 10 | R136: 10 | T136: 10 | U136: 22 | V136: 14 | X136: 10 | Y136: 10 | Z136: 10 | BB136: 140 | BC136: 17
A137: 135 | B137: BOULES CLUB CLOYSIEN | C137: PEAUGER Christian | D137: 11 | E137: HVS | H137: 10 | J137: 10 | K137: 18 | N137: 10 | P137: 10 | R137: 15 | T137: 10 | U137: 10 | V137: 10 | X137: 30 | Y137: 10 | BB137: =SUM(F137:BA137) -> 143 | BC137: 17
A138: 136 | B138: BOULES CLUB CLOYSIEN | C138: QUINTAIS LUCIA | D138: 4 | E138: FVS | J138: 25 | P138: 10 | V138: 12 | X138: 10 | BB138: 57 | BC138: 17
A139: 137 | B139: BOULES CLUB CLOYSIEN | C139: ROLANDEAU Mehdi | D139: 3 | E139: HAS | J139: 25 | P139: 30 | X139: 10 | BB139: 65 | BC139: 17
A140: 138 | B140: BOULES CLUB CLOYSIEN | C140: SOLLET Stéphane | D140: =COUNTIF(F140:BA140,">1") -> 0 | E140: HVS | BB140: 0 | BC140: 17
A141: 139 | B141: BOULES CLUB CLOYSIEN | C141: TANCRE Catherine | D141: 10 | E141: FVS | H141: 10 | M141: 12 | N141: 10 | P141: 10 | R141: 10 | T141: 10 | V141: 10 | W141: 22 | X141: 10 | Y141: 10 | BB141: =SUM(F141:BA141) -> 114 | BC141: 17
A142: 140 | B142: BOULES CLUB CLOYSIEN | C142: TOURNAY Quentin | D142: 6 | E142: HAS | J142: 10 | L142: 15 | N142: 10 | P142: 10 | T142: 22 | U142: 10 | BB142: 77 | BC142: 17
A143: 141 | B143: BOULES CLUB CLOYSIEN | C143: TRIAN Annie | D143: 0 | E143: FVS | BB143: =SUM(F143:BA143) -> 0 | BC143: 17
A144: 142 | B144: BOULES CLUB CLOYSIEN | C144: TRIAU Lucas | D144: 7 | E144: HAS | J144: 10 | K144: 18 | P144: 16 | T144: 10 | V144: 10 | W144: 30 | X144: 10 | BB144: 104 | BC144: 17
A145: 143 | B145: BOULES CLUB CLOYSIEN | C145: TRIAU Fabrice | D145: 7 | E145: HAS | F145: 20 | J145: 22 | N145: 10 | P145: 10 | T145: 10 | V145: 10 | X145: 30 | BB145: 112 | BC145: 17
A146: 144 | B146: BOULES CLUB CLOYSIEN | C146: VIMEUX Rene | D146: 3 | E146: HVS | N146: 10 | P146: 10 | W146: 30 | BB146: 50 | BC146: 17
A147: 145 | B147: BOULES CLUB CLOYSIEN | C147: VINCENT Cyril | D147: 2 | E147: HAD | V147: 20 | W147: 20 | BB147: =SUM(F147:BA147) -> 40 | BC147: 17
A148: 146 | B148: BOULES CLUB CLOYSIEN | C148: VINCENZI Julie | D148: 7 | E148: FAS | H148: 10 | J148: 10 | K148: 10 | P148: 10 | T148: 10 | X148: 10 | Y148: 10 | BB148: 70 | BC148: 17 | BD148: =SUM(BB114:BB148) -> 2322
A149: 147 | B149: CHALLET-BAILLEAU L'EVEQUE | C149: BOIS Daniel | D149: 2 | E149: HVS | N149: 10 | V149: 12 | BB149: 22 | BC149: 5
A150: 148 | B150: CHALLET-BAILLEAU L'EVEQUE | C150: BOISSAY Agès | D150: 6 | E150: FVS | H150: 12 | J150: 10 | O150: 16 | Q150: 10 | V150: 10 | Y150: 10 | BB150: =SUM(F150:BA150) -> 68 | BC150: 5
A151: 149 | B151: CHALLET-BAILLEAU L'EVEQUE | C151: BORGES DE MORAIS Frédéric | D151: 4 | E151: HAS | I151: 10 | N151: 10 | T151: 10 | V151: 10 | BB151: =SUM(F151:BA151) -> 40 | BC151: 5
A152: 150 | B152: CHALLET-BAILLEAU L'EVEQUE | C152: BORGES DE MORAIS José | D152: 5 | E152: HVS | F152: 10 | M152: 10 | N152: 10 | T152: 10 | V152: 10 | BB152: =SUM(F152:BA152) -> 50 | BC152: 5
A153: 151 | B153: CHALLET-BAILLEAU L'EVEQUE | C153: BOUFFERAIT Dominique | D153: =COUNTIF(F153:BA153,">1") -> 0 | E153: HVS | BB153: =SUM(F153:BA153) -> 0 | BC153: 5
A154: 152 | B154: CHALLET-BAILLEAU L'EVEQUE | C154: BRABANT Annick | D154: 4 | E154: FVS | G154: 10 | L154: 12 | O154: 30 | P154: 10 | BB154: 62 | BC154: 5
A155: 153 | B155: CHALLET-BAILLEAU L'EVEQUE | C155: CATTANEO Brigitte | D155: 4 | E155: FVS | M155: 15 | O155: 12 | V155: 15 | Z155: 10 | BB155: 52 | BC155: 5
A156: 154 | B156: CHALLET-BAILLEAU L'EVEQUE | C156: CATTANEO Didier | D156: 5 | E156: HVS | G156: 10 | M156: 15 | N156: 10 | V156: 15 | Z156: 10 | BB156: 60 | BC156: 5
A157: 155 | B157: CHALLET-BAILLEAU L'EVEQUE | C157: COUDIER Alain | D157: 6 | E157: HVS | G157: 10 | I157: 10 | K157: 10 | N157: 10 | P157: 10 | T157: 10 | BB157: 60 | BC157: 5
A158: 156 | B158: CHALLET-BAILLEAU L'EVEQUE | C158: DEMONCAY Florence | D158: 6 | E158: FAS | F158: 10 | I158: 10 | L158: 15 | O158: 30 | P158: 10 | V158: 10 | BB158: 85 | BC158: 5
A159: 157 | B159: CHALLET-BAILLEAU L'EVEQUE | C159: DEMONCAY Patrick | D159: 9 | E159: HVS | F159: 10 | G159: 10 | I159: 10 | L159: 15 | M159: 10 | N159: 10 | P159: 10 | Q159: 15 | V159: 10 | BB159: 100 | BC159: 5
A160: 158 | B160: CHALLET-BAILLEAU L'EVEQUE | C160: DENIEAULT Patrice | D160: 6 | E160: HVS | F160: 10 | G160: 10 | N160: 10 | Q160: 10 | T160: 10 | V160: 10 | BB160: 60 | BC160: 5
A161: 159 | B161: CHALLET-BAILLEAU L'EVEQUE | C161: DUMONT Isabelle | D161: 9 | E161: FVS | H161: 12 | I161: 10 | J161: 10 | M161: 15 | N161: 10 | Q161: 10 | T161: 10 | V161: 15 | Z161: 10 | BB161: 102 | BC161: 5
A162: 160 | B162: CHALLET-BAILLEAU L'EVEQUE | C162: DURQUETY Catherine | D162: 5 | E162: FVS | G162: 10 | L162: 10 | O162: 16 | Q162: 10 | Y162: 10 | BB162: 56 | BC162: 5
A163: 161 | B163: CHALLET-BAILLEAU L'EVEQUE | C163: FROGER Cédric | D163: 1 | E163: HAS | V163: 10 | BB163: 10 | BC163: 5
A164: 162 | B164: CHALLET-BAILLEAU L'EVEQUE | C164: FROGER Didier | D164: 1 | E164: HVS | V164: 10 | BB164: 10 | BC164: 5
A165: 163 | B165: CHALLET-BAILLEAU L'EVEQUE | C165: FROGER Muriel | D165: 1 | E165: FVS | V165: 10 | BB165: 10 | BC165: 5
A166: 164 | B166: CHALLET-BAILLEAU L'EVEQUE | C166: IMPERIALE Chantal | D166: 4 | E166: FVS | L166: 12 | O166: 12 | P166: 10 | V166: 10 | BB166: 44 | BC166: 5
A167: 165 | B167: CHALLET-BAILLEAU L'EVEQUE | C167: IMPERIALE Claude | D167: 8 | E167: HVS | G167: 10 | L167: 12 | N167: 10 | P167: 10 | Q167: 15 | T167: 10 | V167: 10 | Y167: 10 | BB167: 87 | BC167: 5
A168: 166 | B168: CHALLET-BAILLEAU L'EVEQUE | C168: LATIMIER Jean Jacques | D168: 4 | E168: HVS | N168: 10 | Q168: 10 | V168: 12 | Y168: 10 | BB168: 42 | BC168: 5
A169: 167 | B169: CHALLET-BAILLEAU L'EVEQUE | C169: LATIMIER Michel | D169: 4 | E169: HVS | K169: 10 | N169: 10 | Q169: 10 | Y169: 10 | BB169: 40 | BC169: 5
A170: 168 | B170: CHALLET-BAILLEAU L'EVEQUE | C170: LATIMIER Pascal | D170: 10 | E170: HVS | F170: 10 | G170: 10 | H170: 12 | I170: 10 | K170: 10 | M170: 15 | N170: 10 | Q170: 10 | V170: 10 | Y170: 10 | BB170: 107 | BC170: 5
A171: 169 | B171: CHALLET-BAILLEAU L'EVEQUE | C171: LE PAGE Jean Pierre | D171: 1 | E171: HVS | N171: 10 | BB171: 10 | BC171: 5
A172: 170 | B172: CHALLET-BAILLEAU L'EVEQUE | C172: MOISSON David | D172: 4 | E172: HAS | G172: 10 | I172: 10 | K172: 10 | N172: 10 | BB172: 40 | BC172: 5
A173: 171 | B173: CHALLET-BAILLEAU L'EVEQUE | C173: NICOLAS Brigitte | D173: 2 | E173: FVS | N173: 10 | V173: 10 | BB173: 20 | BC173: 5
A174: 172 | B174: CHALLET-BAILLEAU L'EVEQUE | C174: PAMBRUN Anthony | D174: 1 | E174: HAS | N174: 10 | BB174: 10 | BC174: 5
A175: 173 | B175: CHALLET-BAILLEAU L'EVEQUE | C175: PRIEUR Patrice | D175: 2 | E175: HAS | G175: 10 | K175: 10 | BB175: 20 | BC175: 5
A176: 174 | B176: CHALLET-BAILLEAU L'EVEQUE | C176: ROBILLARD Gilles | D176: 5 | E176: HVS | G176: 10 | N176: 10 | Q176: 10 | V176: 12 | Y176: 10 | BB176: 52 | BC176: 5
A177: 175 | B177: CHALLET-BAILLEAU L'EVEQUE | C177: SOIRAT Brigitte | D177: 1 | E177: FVS | N177: 10 | BB177: 10 | BC177: 5
A178: 176 | B178: CHALLET-BAILLEAU L'EVEQUE | C178: SOIRAT Philippe | D178: 5 | E178: HVD | I178: 10 | K178: 10 | N178: 10 | Q178: 15 | V178: 10 | BB178: 55 | BC178: 5
A179: 177 | B179: CHALLET-BAILLEAU L'EVEQUE | C179: TAUPIN Arnaud | D179: 2 | E179: HAS | N179: 14 | V179: 10 | BB179: 24 | BC179: 5
A180: 178 | B180: CHALLET-BAILLEAU L'EVEQUE | C180: TAUPIN Maxime | D180: 4 | E180: HJS | J180: 10 | M180: 10 | N180: 14 | V180: 10 | BB180: 44 | BC180: 5
A181: 179 | B181: CHALLET-BAILLEAU L'EVEQUE | C181: VAN ELSLANDER Paul | D181: 4 | E181: HAS | F181: 10 | G181: 10 | I181: 10 | L181: 12 | BB181: 42 | BC181: 5
A182: 180 | B182: CHALLET-BAILLEAU L'EVEQUE | C182: WINGEL Lionel | D182: 6 | E182: HVS | G182: 10 | L182: 10 | M182: 10 | N182: 10 | V182: 10 | Y182: 10 | BB182: 60 | BC182: 5 | BD182: =SUM(BB149:BB182) -> 1554
A183: 181 | B183: CHARPONT | C183: BECHE Roland | D183: 6 | E183: HVS | G183: 14 | I183: 15 | N183: 10 | U183: 10 | V183: 10 | X183: 10 | BB183: 69 | BC183: 6
A184: 182 | B184: CHARPONT | C184: BESSONEAU Lionel | D184: 0 | E184: HVS | BB184: 0 | BC184: 6
A185: 183 | B185: CHARPONT | C185: BOISSEAU Laurent | D185: 0 | E185: HVS | BB185: 0 | BC185: 6
A186: 184 | B186: CHARPONT | C186: BONHOMME Loic | D186: 0 | E186: HAS | BB186: 0 | BC186: 6
A187: 185 | B187: CHARPONT | C187: BOUCHERY Anne Marie | D187: 2 | E187: FVS | Q187: 10 | X187: 10 | BB187: 20 | BC187: 6
A188: 186 | B188: CHARPONT | C188: BOUCHERY Michel | D188: 2 | E188: HVS | Q188: 10 | X188: 10 | BB188: 20 | BC188: 6
A189: 187 | B189: CHARPONT | C189: BOUILLON Isabelle | D189: 2 | E189: FVD | U189: 10 | V189: 10 | BB189: 20 | BC189: 6
A190: 188 | B190: CHARPONT | C190: BOUVIER Carl | D190: 13 | E190: HVS | F190: 15 | G190: 10 | H190: 10 | I190: 10 | K190: 10 | M190: 12 | N190: 15 | T190: 10 | U190: 10 | V190: 10 | X190: 10 | Y190: 10 | Z190: 10 | BB190: 142 | BC190: 6
A191: 189 | B191: CHARPONT | C191: BRETON Gerard | D191: 1 | E191: HAS | X191: 10 | BB191: 10 | BC191: 6
A192: 190 | B192: CHARPONT | C192: BRETON Timéo | D192: 1 | E192: HJS | X192: 10 | BB192: 10 | BC192: 6
A193: 191 | B193: CHARPONT | C193: BROSCRITTO Luigi | D193: 6 | E193: HVS | F193: 12 | H193: 10 | K193: 12 | Q193: 18 | T193: 10 | X193: 10 | BB193: 72 | BC193: 6
A194: 192 | B194: CHARPONT | C194: CASSAGNABERE Franck | D194: 7 | E194: HVS | H194: 10 | I194: 10 | K194: 10 | Q194: 15 | T194: 10 | V194: 10 | Z194: 12 | BB194: 77 | BC194: 6
A195: 193 | B195: CHARPONT | C195: CEULEMANS Cédric | D195: 13 | E195: HAS | G195: 10 | H195: 10 | K195: 30 | M195: 25 | N195: 10 | Q195: 10 | T195: 15 | U195: 10 | V195: 15 | W195: 12 | X195: 10 | Y195: 20 | Z195: 10 | BB195: 187 | BC195: 6
A196: 194 | B196: CHARPONT | C196: CHAMPAGNAT Jean Pierre | D196: 1 | E196: HV | I196: 10 | BB196: 10 | BC196: 6
A197: 195 | B197: CHARPONT | C197: COMPAIN Francois | D197: =COUNTIF(F197:BA197,">1") -> 9 | E197: HVS | G197: 10 | H197: 10 | I197: 10 | K197: 15 | N197: 10 | T197: 10 | X197: 10 | Y197: 10 | Z197: 10 | BB197: 95 | BC197: 6
A198: 196 | B198: CHARPONT | C198: COMPAIN Xavier | D198: 4 | E198: HAD | N198: 10 | T198: 10 | Y198: 10 | Z198: 10 | BB198: 40 | BC198: 6
A199: 197 | B199: CHARPONT | C199: DAVIAU Noel | D199: 2 | E199: HVS | G199: 10 | I199: 10 | BB199: 20 | BC199: 6
A200: 198 | B200: CHARPONT | C200: DELAHAYE Mickael | D200: 9 | E200: HAS | F200: 15 | G200: 14 | I200: 10 | L200: 14 | N200: 10 | Q200: 15 | V200: 15 | X200: 10 | Y200: 20 | BB200: 123 | BC200: 6
... 431 more rows

Sheet Joueur
F1: Chuisnes | G1: B.O.C. | H1: Crécy | I1: Charpont | J1: Bonneval | K1: Luray | M1: Vichères | N1: Challet - Bailleau | P1: Cloyes | Q1: St G.M. | R1: Bonneval | S1: Yèvres | T1: St Eliph | U1: Blévy M | V1: Challet - B | W1: Cloyes | X1: Charpont | Y1: Chuisnes | Z1: Cheminots | AA1: Cheminots | AB1: B.O.C. | AC1: Ouarville | AD1: Luray | AE1: St G.M. | AF1: La Gauloise | AG1: Gas | AH1: Charpont | AI1: B.O.C. | AJ1: Blévy M | AK1: La Gauloise | AL1: Ouarville | AM1: Luray | AO1: Yèvres | AQ1: Crécy | AR1: St Eliph | AS1: Challet - B | AT1: Vichères | AU1: B.O.C. | AV1: Charpont | AW1: Luray | AX1: La Gauloise | AZ1: Gas | BA1: St Eliph | BB1: TOTAL
B2: Club | C2: nom prénom | D2: concours nbs | E2: =NumCouleur(D2) ->  | F2: 2024-09-01 | G2: 2024-09-07 | H2: 2024-09-08 | I2: 2024-09-14 | J2: 2024-09-15 | K2: 21/09/2024 TRI | L2: 21/09/2024 DM | M2: 22/09/2024 QUA | N2: 28/09/2024 TRI | O2: 28/09/2024 DF | P2: 2024-09-29 | Q2: 2024-10-05 | R2: 2024-10-06 | S2: 2024-10-12 | T2: 2024-10-13 | U2: 2024-10-19 | V2: 2024-10-20 | W2: 2024-10-26 | X2: 2024-10-27 | Y2: 2024-11-02 | Z2: 2024-11-03 | AA2: 2024-11-09 | AB2: 2024-11-10 | AC2: 2024-11-16 | AD2: 2024-11-17 | AE2: 2024-11-23 | AF2: 2024-11-24 | AG2: 2024-11-30 | AH2: 2025-03-01 | AI2: 2025-03-02 | AJ2: 2025-03-08 | AK2: 2025-03-09 | AL2: 2025-03-15 | AM2: 16/03/2025 DOU | AN2: 16/03/2025 DM | AO2: 22/03/2025 DOU | AP2: 22/03/2025 DM | AQ2: 2025-03-23 | AR2: 2025-03-29 | AS2: 2025-04-05 | AT2: 06/04/2025 TRI-M | AU2: 2025-04-12 | AV2: 2025-04-13 | AW2: 2025-04-19 | AX2: 26/04/2025 DOU | AY2: 26/04/2025 DM | AZ2: 2025-04-27 | BA2: 2025-05-03 | BB2: individuel
A3: 1 | B3: CRECY- COUVE | C3: COLOMBEL Jean François | D3: =COUNTIF(F3:BA3,">1") -> 11 | E3: HVD | G3: 15 | H3: 15 | I3: 25 | L3: 30 | N3: 25 | Q3: 15 | T3: 30 | V3: 25 | X3: 25 | Y3: 10 | Z3: 30 | BB3: =SUM(F3:BA3) -> 245
A4: 2 | B4: VICHERES | C4: BROZILLE Benoît | D4: 15 | E4: HAS | F4: 10 | H4: 22 | I4: 10 | L4: 18 | M4: 30 | N4: 20 | P4: 15 | R4: 15 | T4: 18 | U4: 15 | V4: 10 | W4: 15 | X4: 10 | Y4: 15 | Z4: 15 | BB4: 238
A5: 3 | B5: LURAY | C5: MARECHAL Maxime | D5: 16 | E5: HAS | F5: 10 | H5: 10 | I5: 10 | J5: 12 | K5: 10 | M5: 12 | N5: 15 | P5: 25 | R5: 20 | T5: 12 | U5: 20 | V5: 20 | W5: 18 | X5: 10 | Y5: 10 | Z5: 10 | BB5: 224
A6: 4 | B6: LURAY | C6: POIRIER Philippe | D6: 13 | E6: HAS | F6: 15 | G6: 30 | H6: 10 | J6: 30 | K6: 12 | M6: 10 | P6: 15 | R6: 20 | T6: 15 | U6: 20 | V6: 10 | X6: 10 | Y6: 10 | BB6: 207
A7: 5 | B7: LURAY | C7: VALLEE Louis | D7: 14 | E7: HAS | F7: 15 | G7: 30 | H7: 10 | K7: 12 | M7: 10 | N7: 20 | P7: 10 | R7: 20 | T7: 15 | U7: 20 | V7: 10 | X7: 10 | Y7: 15 | Z7: 10 | BB7: 207
A8: 6 | B8: BLEVY MAILLEBOIS | C8: FREMONT Benoît | D8: 12 | E8: HVS | F8: 22 | G8: 20 | H8: 16 | I8: 30 | K8: 10 | N8: 10 | Q8: 20 | T8: 15 | U8: 10 | V8: 10 | Y8: 30 | Z8: 12 | BB8: 205
A9: 7 | B9: BLEVY MAILLEBOIS | C9: FREMONT Stéphane | D9: 12 | E9: HAS | F9: 22 | G9: 20 | H9: 16 | I9: 30 | K9: 10 | N9: 10 | Q9: 20 | T9: 15 | U9: 10 | V9: 10 | Y9: 30 | Z9: 12 | BB9: 205
A10: 8 | B10: CRECY- COUVE | C10: BROU David | D10: 14 | E10: HAD | F10: 15 | G10: 15 | H10: 30 | K10: 15 | M10: 10 | N10: 15 | Q10: 10 | R10: 22 | T10: 10 | U10: 10 | V10: 10 | X10: 22 | Y10: 10 | Z10: 10 | BB10: 204
A11: 9 | B11: LURAY | C11: LIGAVAN Karine | D11: 14 | E11: FAS | F11: 10 | H11: 12 | I11: 10 | J11: 30 | K11: 10 | M11: 20 | O11: 20 | P11: 10 | R11: 15 | T11: 12 | U11: 15 | V11: 10 | W11: 10 | Z11: 14 | BB11: 198
A12: 10 | B12: CRECY- COUVE | C12: LE HELLEY Marcel | D12: 13 | E12: HVS | F12: 10 | G12: 15 | H12: 15 | K12: 10 | M12: 10 | Q12: 22 | R12: 22 | T12: 10 | U12: 10 | V12: 10 | X12: 20 | Y12: 10 | Z12: 30 | BB12: 194
A13: 11 | B13: VICHERES | C13: GIRARD Laurent | D13: 13 | E13: HAS | F13: 10 | G13: 15 | H13: 22 | K13: 15 | M13: 30 | N13: 10 | R13: 10 | T13: 10 | U13: 20 | W13: 12 | X13: 10 | Y13: 18 | Z13: 10 | BB13: 192
A14: 12 | B14: BOUGLAINVAL | C14: LE BRIS Fabrice | D14: 15 | E14: HVS | F14: 15 | G14: 18 | J14: 10 | K14: 15 | M14: 10 | N14: 10 | P14: 12 | Q14: 14 | T14: 10 | U14: 25 | V14: 10 | W14: 10 | X14: 10 | Y14: 10 | Z14: 10 | BB14: 189
A15: 13 | B15: CHARPONT | C15: CEULEMANS Cédric | D15: 13 | E15: HAS | G15: 10 | H15: 10 | K15: 30 | M15: 25 | N15: 10 | Q15: 10 | T15: 15 | U15: 10 | V15: 15 | W15: 12 | X15: 10 | Y15: 20 | Z15: 10 | BB15: 187
A16: 14 | B16: LURAY | C16: ROULEAU Jean-Charles | D16: 14 | E16: HVS | F16: 30 | G16: 12 | H16: 12 | I16: 12 | J16: 12 | K16: 10 | M16: 10 | N16: 12 | P16: 15 | T16: 10 | U16: 10 | X16: 15 | Y16: 15 | Z16: 10 | BB16: 185
A17: 15 | B17: VICHERES | C17: SAGOT Didier | D17: 13 | E17: HVS | F17: 18 | H17: 12 | I17: 10 | J17: 18 | N17: 10 | P17: 10 | R17: 30 | T17: 20 | V17: 10 | W17: 12 | X17: 10 | Y17: 12 | Z17: 10 | BB17: 182
A18: 16 | B18: BOUGLAINVAL | C18: ALLOUIS Corentin | D18: 14 | E18: HAD | F18: 10 | G18: 15 | H18: 18 | I18: 10 | J18: 10 | K18: 15 | M18: 10 | N18: 10 | P18: 10 | Q18: 10 | R18: 18 | T18: 15 | X18: 10 | Z18: 20 | BB18: 181
A19: 17 | B19: CRECY- COUVE | C19: GOSNET Franck | D19: 9 | E19: HAD | G19: 15 | I19: 25 | K19: 20 | M19: 15 | N19: 25 | P19: 10 | Q19: 15 | T19: 30 | X19: 25 | BB19: 180
A20: 18 | B20: LURAY | C20: MARCHIORI Joel | D20: 14 | E20: HVS | F20: 30 | G20: 10 | H20: 10 | I20: 15 | J20: 10 | K20: 12 | M20: 10 | N20: 12 | P20: 15 | Q20: 10 | U20: 10 | X20: 10 | Y20: 12 | Z20: 10 | BB20: 176
A21: 19 | B21: VICHERES | C21: PODWOJEWSKI Patrice | D21: 11 | E21: HVD | I21: 20 | M21: 22 | N21: 10 | P21: 20 | R21: 30 | T21: 10 | U21: 20 | W21: 12 | X21: 10 | Y21: 12 | Z21: 10 | BB21: 176
A22: 20 | B22: LURAY | C22: BURSON Ghislaine | D22: 13 | E22: FAS | F22: 10 | H22: 12 | I22: 12 | J22: 15 | L22: 10 | M22: 12 | O22: 20 | P22: 15 | U22: 15 | V22: 20 | X22: 10 | Y22: 10 | Z22: 14 | BB22: 175
A23: 21 | B23: LURAY | C23: LIGAVAN Philippe | D23: 12 | E23: HVD | F23: 10 | G23: 10 | H23: 15 | I23: 10 | J23: 15 | M23: 20 | P23: 20 | Q23: 15 | R23: 15 | T23: 25 | W23: 10 | Y23: 10 | BB23: 175
A24: 22 | B24: CRECY- COUVE | C24: LE MEUR Yoan | D24: 13 | E24: HAS | F24: 10 | G24: 15 | H24: 20 | I24: 10 | K24: 15 | N24: 15 | Q24: 22 | T24: 10 | U24: 10 | V24: 12 | X24: 12 | Y24: 10 | Z24: 10 | BB24: 171
A25: 23 | B25: VICHERES | C25: LEBOSSE Brice | D25: 10 | E25: HAS | H25: 22 | N25: 30 | P25: 15 | R25: 14 | T25: 20 | U25: 15 | W25: 15 | X25: 10 | Y25: 20 | Z25: 10 | BB25: 171
A26: 24 | B26: BOULES CLUB CLOYSIEN | C26: MAURICE Marc | D26: 12 | E26: HVS | J26: 20 | M26: 12 | N26: 14 | P26: 12 | Q26: 10 | T26: 10 | U26: 22 | V26: 14 | W26: 22 | X26: 10 | Y26: 10 | Z26: 10 | BB26: 166
A27: 25 | B27: BOUGLAINVAL | C27: LOREILLER Bruno | D27: 12 | E27: HVD | F27: 10 | H27: 10 | I27: 10 | K27: 12 | M27: 16 | N27: 10 | Q27: 10 | T27: 15 | U27: 25 | V27: 12 | X27: 10 | Y27: 25 | BB27: 165
A28: 26 | B28: BOULES CLUB CLOYSIEN | C28: GERARD Frederique | D28: 9 | E28: HAS | F28: 20 | J28: 22 | L28: 20 | N28: 10 | P28: 18 | T28: 22 | U28: 10 | W28: 30 | Y28: 12 | BB28: 164
A29: 27 | B29: LURAY | C29: PAPIN Jasmine | D29: 12 | E29: FVD | F29: 15 | G29: 10 | H29: 15 | I29: 10 | L29: 25 | M29: 10 | O29: 16 | P29: 10 | U29: 10 | X29: 18 | Y29: 12 | Z29: 10 | BB29: 161
A30: 28 | B30: VICHERES | C30: LETOURNEUR Christian | D30: 11 | E30: HVS | F30: 10 | H30: 15 | I30: 10 | J30: 15 | M30: 15 | N30: 15 | R30: 15 | T30: 12 | V30: 10 | W30: 20 | Y30: 15 | BB30: 152
A31: 29 | B31: VICHERES | C31: ESCULIER Christian | D31: 10 | E31: HVS | F31: 10 | H31: 12 | I31: 20 | M31: 15 | N31: 30 | P31: 10 | T31: 10 | V31: 10 | Y31: 18 | Z31: 15 | BB31: 150
A32: 30 | B32: LURAY | C32: SORTAIS Luc | D32: 12 | E32: HVS | F32: 15 | G32: 12 | I32: 10 | N32: 12 | Q32: 10 | T32: 10 | U32: 18 | V32: 10 | W32: 18 | X32: 12 | Y32: 10 | Z32: 10 | BB32: 147
A33: 31 | B33: BOUGLAINVAL | C33: COUELLAUD Walter | D33: 13 | E33: HAS | G33: 10 | I33: 10 | J33: 10 | K33: 10 | M33: 10 | N33: 10 | P33: 10 | Q33: 10 | T33: 10 | V33: 10 | W33: 10 | X33: 10 | Y33: 25 | BB33: 145
A34: 32 | B34: LURAY | C34: BURSON Denis | D34: 10 | E34: HVS | F34: 10 | G34: 10 | H34: 10 | I34: 10 | J34: 30 | K34: 10 | M34: 20 | N34: 15 | P34: 20 | U34: 10 | BB34: 145
A35: 33 | B35: BOULES CLUB CLOYSIEN | C35: PEAUGER Christian | D35: 11 | E35: HVS | H35: 10 | J35: 10 | K35: 18 | N35: 10 | P35: 10 | R35: 15 | T35: 10 | U35: 10 | V35: 10 | X35: 30 | Y35: 10 | BB35: 143
A36: 34 | B36: CHARPONT | C36: NICHOLAS Thierry | D36: 12 | E36: HVS | F36: 10 | G36: 10 | H36: 10 | I36: 10 | K36: 10 | M36: 18 | N36: 10 | U36: 10 | V36: 10 | X36: 15 | Y36: 20 | Z36: 10 | BB36: 143
A37: 35 | B37: CRECY- COUVE | C37: BAZIRE Cédric | D37: 6 | E37: HAD | F37: 25 | I37: 18 | N37: 25 | Q37: 15 | T37: 30 | Z37: 30 | BB37: 143
A38: 36 | B38: CHARPONT | C38: BOUVIER Carl | D38: 13 | E38: HVS | F38: 15 | G38: 10 | H38: 10 | I38: 10 | K38: 10 | M38: 12 | N38: 15 | T38: 10 | U38: 10 | V38: 10 | X38: 10 | Y38: 10 | Z38: 10 | BB38: 142
A39: 37 | B39: BOUGLAINVAL | C39: MARTIN Gérard | D39: 11 | E39: HVD | F39: 20 | G39: 12 | J39: 10 | K39: 10 | M39: 10 | N39: 10 | P39: 10 | U39: 15 | V39: 14 | X39: 10 | Z39: 20 | BB39: 141
A40: 38 | B40: BOULES CLUB CLOYSIEN | C40: PATEYRON Michel | D40: 11 | E40: HVS | J40: 20 | M40: 12 | P40: 12 | Q40: 10 | R40: 10 | T40: 10 | U40: 22 | V40: 14 | X40: 10 | Y40: 10 | Z40: 10 | BB40: 140
A41: 39 | B41: CHARPONT | C41: JEANNOT Lucie | D41: 11 | E41: FAS | G41: 10 | H41: 10 | L41: 14 | M41: 25 | O41: 15 | T41: 10 | U41: 10 | V41: 15 | X41: 10 | Y41: 10 | Z41: 10 | BB41: 139
A42: 40 | B42: LURAY | C42: BOUDVIN Jérome | D42: 12 | E42: HAS | F42: 10 | G42: 12 | H42: 10 | I42: 10 | L42: 10 | N42: 10 | Q42: 10 | T42: 10 | U42: 10 | V42: 20 | X42: 15 | Z42: 10 | BB42: 137
A43: 41 | B43: VICHERES | C43: LETOURNEUR Annick | D43: 10 | E43: FVS | F43: 10 | H43: 12 | I43: 10 | J43: 15 | O43: 25 | R43: 10 | T43: 10 | V43: 10 | W43: 20 | Y43: 15 | BB43: 137
A44: 42 | B44: SAINT ELIPH | C44: BOUJU Marion | D44: 11 | E44: FAS | F44: 10 | H44: 10 | I44: 10 | L44: 20 | P44: 12 | T44: 14 | U44: 10 | V44: 15 | W44: 15 | X44: 10 | Z44: 10 | BB44: 136
A45: 43 | B45: CHARPONT | C45: LAUVRAY sébastien | D45: 12 | E45: HAS | F45: 15 | G45: 14 | H45: 10 | I45: 10 | L45: 16 | M45: 10 | N45: 10 | T45: 10 | U45: 10 | V45: 10 | X45: 10 | Y45: 10 | BB45: 135
A46: 44 | B46: CRECY- COUVE | C46: LANOE Christophe | D46: 11 | E46: HVD | F46: 15 | G46: 15 | H46: 15 | I46: 10 | K46: 10 | M46: 15 | N46: 10 | P46: 15 | Q46: 10 | T46: 10 | X46: 10 | BB46: 135
A47: 45 | B47: CRECY- COUVE | C47: LECOMTE Alexandra | D47: 8 | E47: FAS | H47: 20 | L47: 30 | M47: 15 | Q47: 15 | U47: 10 | V47: 25 | X47: 10 | Y47: 10 | BB47: 135
A48: 46 | B48: VICHERES | C48: BRISSONNET Angelique | D48: 11 | E48: FAS | G48: 10 | H48: 10 | K48: 15 | M48: 10 | R48: 15 | T48: 10 | U48: 15 | W48: 12 | X48: 10 | Y48: 18 | Z48: 10 | BB48: 135
A49: 47 | B49: SAINT ELIPH | C49: LOMBARD Roméo | D49: 9 | E49: HAS | N49: 22 | Q49: 10 | R49: 20 | T49: 20 | U49: 10 | V49: 15 | W49: 15 | X49: 10 | Y49: 10 | BB49: 132
A50: 48 | B50: CHARPONT | C50: DELAMARE Hervé | D50: 12 | E50: HVD | F50: 10 | K50: 10 | M50: 10 | N50: 15 | Q50: 10 | R50: 10 | T50: 10 | U50: 12 | V50: 12 | W50: 12 | X50: 10 | Z50: 10 | BB50: 131
A51: 49 | B51: BOUGLAINVAL | C51: FABRY Emmanuel | D51: 8 | E51: HVS | G51: 25 | I51: 22 | N51: 10 | P51: 15 | T51: 15 | U51: 14 | X51: 14 | Y51: 15 | BB51: 130
A52: 50 | B52: CHARPONT | C52: TOULOUSE Louis | D52: 8 | E52: HAD | H52: 10 | K52: 30 | M52: 25 | T52: 15 | V52: 15 | W52: 15 | X52: 10 | Z52: 10 | BB52: 130
A53: 51 | B53: BOUGLAINVAL | C53: CHARTIER Bernard | D53: 11 | E53: HVS | G53: 25 | H53: 10 | I53: 12 | J53: 10 | N53: 10 | Q53: 12 | U53: 10 | W53: 10 | X53: 10 | Y53: 10 | Z53: 10 | BB53: 129
A54: 52 | B54: BOULES CLUB CLOYSIEN | C54: LALLIOT Gildas | D54: 8 | E54: HAS | F54: 20 | H54: 10 | J54: 12 | P54: 10 | R54: 15 | T54: 22 | V54: 10 | X54: 30 | BB54: 129
A55: 53 | B55: LURAY | C55: ROSSIGNOL Pascal | D55: 10 | E55: HVS | F55: 30 | G55: 12 | H55: 12 | N55: 10 | Q55: 10 | T55: 10 | U55: 10 | V55: 10 | X55: 15 | Z55: 10 | BB55: 129
A56: 54 | B56: BLEVY MAILLEBOIS | C56: VAZQUEZ Baptiste | D56: 8 | E56: HAS | G56: 20 | H56: 16 | K56: 10 | Q56: 20 | U56: 10 | V56: 10 | Y56: 30 | Z56: 12 | BB56: 128
A57: 55 | B57: CRECY- COUVE | C57: TACHAT Bruno | D57: 10 | E57: HVD | G57: 15 | K57: 20 | M57: 12 | N57: 10 | P57: 10 | U57: 10 | V57: 10 | X57: 10 | Y57: 16 | Z57: 15 | BB57: 128
A58: 56 | B58: SAINT ELIPH | C58: HARDY Aurelien | D58: 9 | E58: HAS | F58: 12 | N58: 22 | P58: 14 | Q58: 10 | T58: 20 | U58: 10 | V58: 15 | W58: 15 | X58: 10 | BB58: 128
A59: 57 | B59: CHARPONT | C59: JOSSE Marcel | D59: 11 | E59: HVS | G59: 10 | H59: 12 | I59: 10 | J59: 10 | K59: 15 | M59: 18 | T59: 10 | U59: 12 | X59: 10 | Y59: 10 | Z59: 10 | BB59: 127
A60: 58 | B60: LURAY | C60: BAZEMONT Bruno | D60: 10 | E60: HAD | G60: 22 | H60: 10 | I60: 10 | N60: 10 | Q60: 10 | T60: 10 | U60: 10 | V60: 10 | X60: 12 | Z60: 22 | BB60: 126
A61: 59 | B61: CHARPONT | C61: LE MANACH Pascal | D61: 11 | E61: HVD | F61: 10 | H61: 10 | I61: 10 | K61: 12 | M61: 10 | N61: 16 | Q61: 10 | R61: 10 | U61: 12 | V61: 10 | Z61: 15 | BB61: 125
A62: 60 | B62: CRECY- COUVE | C62: LECONTE Sylvain | D62: 8 | E62: HAS | G62: 15 | H62: 30 | I62: 15 | M62: 10 | N62: 10 | X62: 20 | Y62: 15 | Z62: 10 | BB62: 125
A63: 61 | B63: VICHERES | C63: PROUST Julien | D63: 9 | E63: HAS | F63: 10 | G63: 15 | H63: 15 | I63: 10 | J63: 15 | K63: 15 | M63: 15 | N63: 20 | R63: 10 | BB63: 125
A64: 62 | B64: SAINT ELIPH | C64: LOMBARD Richard | D64: 11 | E64: HAD | F64: 12 | H64: 10 | I64: 10 | Q64: 10 | R64: 20 | T64: 10 | U64: 10 | V64: 12 | W64: 10 | X64: 10 | Z64: 10 | BB64: 124
A65: 63 | B65: BOUGLAINVAL | C65: CHALLE Sébastien | D65: 11 | E65: HAS | F65: 10 | G65: 10 | H65: 10 | I65: 14 | J65: 10 | K65: 10 | M65: 15 | P65: 12 | T65: 10 | V65: 12 | X65: 10 | BB65: 123
A66: 64 | B66: CHARPONT | C66: DELAHAYE Mickael | D66: 9 | E66: HAS | F66: 15 | G66: 14 | I66: 10 | L66: 14 | N66: 10 | Q66: 15 | V66: 15 | X66: 10 | Y66: 20 | BB66: 123
A67: 65 | B67: CHARPONT | C67: PITOT Didier | D67: =COUNTIF(F67:BA67,">1") -> 10 | E67: HVS | F67: 10 | H67: 10 | I67: 15 | J67: 20 | M67: 12 | N67: 16 | V67: 10 | X67: 10 | Y67: 10 | Z67: 10 | BB67: =SUM(F67:BA67) -> 123
A68: 66 | B68: CRECY- COUVE | C68: GERMAIN Stéphane | D68: 9 | E68: HAD | F68: 15 | I68: 15 | K68: 14 | M68: 10 | N68: 15 | Q68: 22 | R68: 12 | T68: 10 | X68: 10 | BB68: 123
A69: 67 | B69: BOUGLAINVAL | C69: ALLOUIS Stéphane | D69: 9 | E69: HVS | F69: 20 | G69: 18 | I69: 12 | K69: 15 | M69: 10 | N69: 10 | T69: 15 | X69: 10 | Z69: 10 | BB69: 120
A70: 68 | B70: BOUGLAINVAL | C70: MARTIN Nadine | D70: 10 | E70: FVD | F70: 10 | G70: 10 | J70: 10 | K70: 10 | M70: 10 | O70: 15 | P70: 10 | U70: 15 | X70: 10 | Z70: 20 | BB70: 120
A71: 69 | B71: CRECY- COUVE | C71: PIREAULT Christian | D71: 9 | E71: HVD | F71: 15 | H71: 15 | M71: 12 | N71: 10 | T71: 12 | U71: 10 | X71: 20 | Y71: 16 | Z71: 10 | BB71: 120
A72: 70 | B72: LURAY | C72: AZEVEDO Antonio | D72: 7 | E72: HVD | I72: 15 | K72: 10 | N72: 20 | Q72: 15 | T72: 25 | Y72: 15 | Z72: 20 | BB72: 120
A73: 71 | B73: BLEVY MAILLEBOIS | C73: GREVIN Michel | D73: 11 | E73: HVS | G73: 10 | H73: 10 | I73: 10 | N73: 10 | Q73: 12 | T73: 10 | U73: 15 | V73: 10 | X73: 10 | Y73: 12 | Z73: 10 | BB73: 119
A74: 72 | B74: SAINT GEORGES MOTEL | C74: POINÇON Stéphane | D74: 7 | E74: HA | I74: 12 | K74: 22 | Q74: 20 | V74: 18 | X74: 10 | Y74: 22 | Z74: 15 | BB74: 119
A75: 73 | B75: CHARPONT | C75: PITOT Micheline | D75: 10 | E75: FVS | F75: 16 | H75: 10 | I75: 10 | J75: 10 | M75: 12 | O75: 15 | V75: 10 | X75: 10 | Y75: 10 | Z75: 15 | BB75: 118
A76: 74 | B76: CHARPONT | C76: PRIEUR Alain | D76: 11 | E76: HVS | F76: 10 | H76: 10 | I76: 10 | J76: 10 | M76: 10 | N76: 10 | P76: 10 | U76: 12 | V76: 10 | X76: 10 | Z76: 16 | BB76: 118
A77: 75 | B77: LURAY | C77: FORET Christelle | D77: 10 | E77: FAS | F77: 15 | G77: 10 | I77: 10 | N77: 10 | Q77: 10 | T77: 15 | U77: 10 | V77: 10 | W77: 18 | Y77: 10 | BB77: 118
A78: 76 | B78: LURAY | C78: LE BRIERE Michel | D78: 9 | E78: HAD | G78: 22 | I78: 10 | K78: 12 | M78: 12 | Q78: 10 | T78: 10 | U78: 10 | V78: 10 | Z78: 22 | BB78: 118
A79: 77 | B79: CRECY- COUVE | C79: LAMY Laurent | D79: 9 | E79: HVS | F79: 15 | G79: 15 | H79: 20 | I79: 10 | M79: 10 | N79: 15 | P79: 10 | R79: 12 | X79: 10 | BB79: 117
A80: 78 | B80: BLEVY MAILLEBOIS | C80: MARTIN Eric | D80: 9 | E80: HVS | G80: 10 | H80: 10 | N80: 10 | Q80: 12 | T80: 12 | U80: 30 | V80: 10 | Y80: 12 | Z80: 10 | BB80: 116
A81: 79 | B81: CRECY- COUVE | C81: HEBERT Ludovic | D81: 7 | E81: HAS | F81: 25 | G81: 15 | H81: 20 | K81: 25 | N81: 10 | U81: 10 | X81: 10 | BB81: 115
A82: 80 | B82: BOULES CLUB CLOYSIEN | C82: TANCRE Catherine | D82: 10 | E82: FVS | H82: 10 | M82: 12 | N82: 10 | P82: 10 | R82: 10 | T82: 10 | V82: 10 | W82: 22 | X82: 10 | Y82: 10 | BB82: 114
A83: 81 | B83: BOULES CLUB CLOYSIEN | C83: TRIAU Fabrice | D83: 7 | E83: HAS | F83: 20 | J83: 22 | N83: 10 | P83: 10 | T83: 10 | V83: 10 | X83: 30 | BB83: 112
A84: 82 | B84: CHARPONT | C84: JOSSE Marie Helene | D84: 10 | E84: FVS | G84: 16 | H84: 10 | I84: 10 | J84: 10 | L84: 16 | M84: 10 | U84: 10 | X84: 10 | Y84: 10 | Z84: 10 | BB84: 112
A85: 83 | B85: CHARPONT | C85: PITOT Cédric | D85: 10 | E85: HAD | G85: 10 | H85: 10 | I85: 10 | L85: 10 | M85: 12 | V85: 15 | W85: 15 | X85: 10 | Y85: 10 | Z85: 10 | BB85: 112
A86: 84 | B86: VICHERES | C86: GUILLOU Mayvis | D86: 6 | E86: HAS | H86: 25 | N86: 10 | R86: 25 | T86: 12 | X86: 15 | Z86: 25 | BB86: 112
A87: 85 | B87: VICHERES | C87: SURCIN Tanguy | D87: 6 | E87: HAS | H87: 25 | P87: 10 | R87: 25 | T87: 12 | X87: 15 | Z87: 25 | BB87: 112
A88: 86 | B88: VICHERES | C88: SALOMON Dimitri | D88: 7 | E88: HAD | I88: 20 | M88: 22 | P88: 15 | R88: 14 | T88: 18 | Y88: 12 | Z88: 10 | BB88: 111
A89: 87 | B89: CRECY- COUVE | C89: LE HELLEY Kevin | D89: 9 | E89: HAS | F89: 10 | K89: 14 | Q89: 10 | R89: 22 | T89: 10 | V89: 12 | X89: 12 | Y89: 10 | Z89: 10 | BB89: 110
A90: 88 | B90: LURAY | C90: DESESQUELLES Philippe | D90: 10 | E90: HVS | F90: 10 | G90: 10 | I90: 16 | J90: 10 | K90: 12 | M90: 10 | N90: 12 | U90: 10 | V90: 10 | X90: 10 | BB90: 110
A91: 89 | B91: LURAY | C91: ROSSIGNOL Françoise | D91: 11 | E91: FVS | F91: 10 | G91: 10 | H91: 10 | N91: 10 | Q91: 10 | T91: 10 | U91: 10 | V91: 10 | W91: 10 | X91: 10 | Z91: 10 | BB91: 110
A92: 90 | B92: LURAY | C92: GLIZE Elisabheth | D92: 9 | E92: FVD | H92: 15 | I92: 10 | O92: 18 | P92: 10 | T92: 10 | U92: 10 | X92: 10 | Y92: 12 | Z92: 14 | BB92: 109
A93: 91 | B93: BOULES CLUB CLOYSIEN | C93: HOUE Jean Pierre | D93: 7 | E93: HVS | J93: 20 | P93: 10 | Q93: 10 | U93: 22 | V93: 14 | W93: 22 | X93: 10 | BB93: 108
A94: 92 | B94: CHARPONT | C94: LOYER Jean François | D94: 9 | E94: HVD | F94: 16 | I94: 10 | K94: 12 | N94: 15 | Q94: 10 | R94: 10 | T94: 10 | Y94: 10 | Z94: 15 | BB94: 108
A95: 93 | B95: CHARPONT | C95: PRIEUR Laure | D95: 9 | E95: FVS | F95: 16 | H95: 10 | I95: 10 | M95: 10 | O95: 15 | P95: 10 | U95: 12 | X95: 15 | Z95: 10 | BB95: 108
A96: 94 | B96: CHARPONT | C96: ROUSSEAU Patrick | D96: 8 | E96: HVS | G96: 12 | I96: 15 | J96: 20 | N96: 16 | P96: 10 | X96: 10 | Y96: 10 | Z96: 15 | BB96: 108
A97: 95 | B97: CHALLET-BAILLEAU L'EVEQUE | C97: LATIMIER Pascal | D97: 10 | E97: HVS | F97: 10 | G97: 10 | H97: 12 | I97: 10 | K97: 10 | M97: 15 | N97: 10 | Q97: 10 | V97: 10 | Y97: 10 | BB97: 107
A98: 96 | B98: CRECY- COUVE | C98: GASSE MARGAT Jacky | D98: 7 | E98: HVD | I98: 15 | K98: 20 | N98: 10 | U98: 10 | X98: 22 | Y98: 15 | Z98: 15 | BB98: 107
A99: 97 | B99: LURAY | C99: NICHAU Jonathan | D99: 6 | E99: HAS | I99: 20 | L99: 25 | N99: 12 | Q99: 10 | U99: 18 | Z99: 22 | BB99: 107
A100: 98 | B100: BLEVY MAILLEBOIS | C100: MAIA Christophe | D100: 10 | E100: HAS | H100: 12 | I100: 12 | K100: 10 | N100: 10 | Q100: 12 | T100: 10 | U100: 10 | X100: 10 | Y100: 10 | Z100: 10 | BB100: 106
A101: 99 | B101: CHARPONT | C101: FOSSE Emeline | D101: 10 | E101: FJS | G101: 12 | H101: 10 | I101: 10 | L101: 10 | M101: 12 | N101: 10 | Q101: 10 | T101: 10 | Y101: 10 | Z101: 12 | BB101: 106
A102: 100 | B102: BOUGLAINVAL | C102: GAUDEFROY Patrice | D102: 7 | E102: HVS | F102: 15 | G102: 20 | K102: 15 | N102: 10 | Q102: 10 | U102: 25 | Y102: 10 | BB102: 105
A103: 101 | B103: CRECY- COUVE | C103: BEGAL William | D103: 8 | E103: HVS | H103: 10 | J103: 15 | M103: 20 | N103: 15 | T103: 10 | U103: 10 | V103: 15 | X103: 10 | BB103: 105
A104: 102 | B104: CRECY- COUVE | C104: LECONTE Luc | D104: 6 | E104: HVS | G104: 15 | H104: 20 | I104: 25 | N104: 15 | Q104: 15 | Y104: 15 | BB104: 105
A105: 103 | B105: LURAY | C105: TRUBERT Jacky | D105: 6 | E105: HVD | K105: 10 | N105: 20 | Q105: 15 | T105: 25 | Y105: 15 | Z105: 20 | BB105: 105
A106: 104 | B106: VICHERES | C106: CHASSIN Jean-Paul | D106: 9 | E106: HAS | G106: 10 | H106: 14 | I106: 10 | N106: 15 | P106: 10 | R106: 10 | T106: 10 | W106: 16 | Z106: 10 | BB106: 105
A107: 105 | B107: VICHERES | C107: LEBACLE Sébastien | D107: 9 | E107: HAS | F107: 10 | I107: 10 | M107: 15 | N107: 10 | P107: 10 | T107: 20 | V107: 10 | X107: 10 | Z107: 10 | BB107: 105
A108: 106 | B108: BOUGLAINVAL | C108: DENEFF Guillaume | D108: 8 | E108: HAS | F108: 10 | G108: 15 | L108: 10 | M108: 15 | Q108: 12 | U108: 10 | V108: 22 | Y108: 10 | BB108: 104
A109: 107 | B109: BOULES CLUB CLOYSIEN | C109: TRIAU Lucas | D109: 7 | E109: HAS | J109: 10 | K109: 18 | P109: 16 | T109: 10 | V109: 10 | W109: 30 | X109: 10 | BB109: 104
A110: 108 | B110: BLEVY MAILLEBOIS | C110: FREMONT Denis | D110: 9 | E110: HVS | H110: 12 | I110: 10 | K110: 10 | N110: 10 | Q110: 16 | T110: 15 | X110: 10 | Y110: 10 | Z110: 10 | BB110: 103
A111: 109 | B111: BLEVY MAILLEBOIS | C111: GILLOT Moïse | D111: 9 | E111: HVS | H111: 12 | I111: 10 | K111: 10 | N111: 10 | Q111: 16 | T111: 15 | X111: 10 | Y111: 10 | Z111: 10 | BB111: 103
A112: 110 | B112: BOULES CLUB CLOYSIEN | C112: GERARD Marie-Laure | D112: 8 | E112: FAS | J112: 12 | K112: 10 | O112: 22 | P112: 10 | R112: 15 | T112: 12 | U112: 10 | Y112: 12 | BB112: 103
A113: 111 | B113: BOUGLAINVAL | C113: CRETON Michel | D113: 10 | E113: HVD | F113: 10 | G113: 10 | I113: 10 | J113: 12 | K113: 10 | Q113: 10 | V113: 10 | W113: 10 | X113: 10 | Y113: 10 | BB113: 102
A114: 112 | B114: BOUGLAINVAL | C114: CRETON Renée | D114: 10 | E114: FVD | F114: 10 | G114: 10 | I114: 10 | J114: 12 | K114: 10 | Q114: 10 | V114: 10 | W114: 10 | X114: 10 | Y114: 10 | BB114: 102
A115: 113 | B115: CHALLET-BAILLEAU L'EVEQUE | C115: DUMONT Isabelle | D115: 9 | E115: FVS | H115: 12 | I115: 10 | J115: 10 | M115: 15 | N115: 10 | Q115: 10 | T115: 10 | V115: 15 | Z115: 10 | BB115: 102
A116: 114 | B116: CRECY- COUVE | C116: LE COINT Frédéric | D116: 8 | E116: HAD | F116: 22 | H116: 10 | I116: 10 | M116: 10 | N116: 15 | T116: 10 | U116: 10 | X116: 15 | BB116: 102
A117: 115 | B117: SAINT ELIPH | C117: COMTAMIN Jonathan | D117: 9 | E117: HAD | N117: 10 | R117: 20 | T117: 10 | U117: 10 | V117: 12 | W117: 10 | X117: 10 | Y117: 10 | Z117: 10 | BB117: 102
A118: 116 | B118: BOUGLAINVAL | C118: HERY Vincent | D118: 7 | E118: HVS | I118: 22 | J118: 10 | N118: 10 | P118: 15 | T118: 15 | X118: 14 | Y118: 15 | BB118: 101
A119: 117 | B119: LA GAULOISE | C119: CABART Georgette | D119: 9 | E119: FVS | O119: 15 | P119: 10 | R119: 16 | T119: 10 | U119: 10 | V119: 10 | W119: 10 | X119: 10 | Y119: 10 | BB119: 101
A120: 118 | B120: CHALLET-BAILLEAU L'EVEQUE | C120: DEMONCAY Patrick | D120: 9 | E120: HVS | F120: 10 | G120: 10 | I120: 10 | L120: 15 | M120: 10 | N120: 10 | P120: 10 | Q120: 15 | V120: 10 | BB120: 100
A121: 119 | B121: LURAY | C121: MARECHAL Eric | D121: 7 | E121: HVS | H121: 10 | I121: 10 | J121: 15 | M121: 12 | P121: 25 | R121: 15 | T121: 12 | BB121: 99
A122: 120 | B122: CHARPONT | C122: PALARIC Nathalie | D122: 8 | E122: FVS | I122: 10 | J122: 10 | M122: 18 | O122: 15 | U122: 10 | X122: 10 | Y122: 10 | Z122: 15 | BB122: 98
A123: 121 | B123: LURAY | C123: PELTRIAUX Frédéric | D123: 8 | E123: HAS | F123: 12 | G123: 22 | H123: 10 | J123: 12 | K123: 12 | N123: 10 | Q123: 10 | U123: 10 | BB123: 98
A124: 122 | B124: BOUGLAINVAL | C124: CAUSERET Gilles | D124: 8 | E124: HVD | I124: 10 | J124: 12 | K124: 10 | N124: 10 | P124: 10 | W124: 25 | X124: 10 | Y124: 10 | BB124: 97
A125: 123 | B125: CHARPONT | C125: RIBEIRO Manuel | D125: 8 | E125: HVS | F125: 12 | H125: 10 | I125: 10 | M125: 12 | N125: 10 | Q125: 18 | T125: 10 | X125: 15 | BB125: 97
A126: 124 | B126: CRECY- COUVE | C126: CAMART Michel | D126: 7 | E126: HAS | F126: 15 | H126: 30 | M126: 10 | Q126: 10 | T126: 10 | U126: 10 | X126: 12 | BB126: 97
A127: 125 | B127: LURAY | C127: DUPONT Michel | D127: 9 | E127: HVS | F127: 10 | G127: 12 | I127: 10 | K127: 10 | Q127: 10 | T127: 15 | U127: 10 | X127: 10 | Z127: 10 | BB127: 97
A128: 126 | B128: BOUGLAINVAL | C128: GARGASSON Jacky | D128: 8 | E128: HVD | F128: 20 | G128: 12 | N128: 10 | P128: 10 | U128: 10 | V128: 14 | X128: 10 | Z128: 10 | BB128: 96
A129: 127 | B129: BOUGLAINVAL | C129: HICGUET Anne-Claire | D129: 9 | E129: FAS | F129: 10 | G129: 10 | H129: 10 | I129: 14 | J129: 10 | P129: 10 | T129: 10 | V129: 12 | X129: 10 | BB129: 96
A130: 128 | B130: BOUGLAINVAL | C130: MENAGER Jean Paul | D130: 8 | E130: HVD | G130: 20 | I130: 10 | N130: 12 | P130: 10 | V130: 14 | X130: 10 | Y130: 10 | Z130: 10 | BB130: 96
A131: 129 | B131: CHARPONT | C131: FAURE Christophe | D131: =COUNTIF(F131:BA131,">1") -> 8 | E131: HVS | G131: 16 | H131: 10 | I131: 10 | Q131: 18 | T131: 10 | U131: 12 | V131: 10 | X131: 10 | BB131: =SUM(F131:BA131) -> 96
A132: 130 | B132: CRECY- COUVE | C132: DEMEGLIO Yves | D132: 7 | E132: HVD | F132: 10 | H132: 18 | I132: 18 | K132: 15 | N132: 10 | P132: 15 | Q132: 10 | BB132: 96
A133: 131 | B133: CHARPONT | C133: COMPAIN Francois | D133: 9 | E133: HVS | G133: 10 | H133: 10 | I133: 10 | K133: 15 | N133: 10 | T133: 10 | X133: 10 | Y133: 10 | Z133: 10 | BB133: 95
A134: 132 | B134: VICHERES | C134: SALOMON Carine | D134: 6 | E134: FAD | F134: 12 | I134: 10 | M134: 30 | P134: 10 | T134: 18 | Z134: 15 | BB134: 95
A135: 133 | B135: CRECY- COUVE | C135: LECONTE Steven | D135: 6 | E135: HAD | I135: 15 | K135: 14 | Q135: 15 | V135: 25 | Y135: 15 | Z135: 10 | BB135: 94
A136: 134 | B136: SAINT GEORGES MOTEL | C136: ABDELESSELAMI Kader | D136: 6 | E136: HA | Q136: 20 | T136: 12 | V136: 18 | X136: 10 | Y136: 22 | Z136: 12 | BB136: 94
A137: 135 | B137: CRECY- COUVE | C137: GAUDIN Jean Marc | D137: 7 | E137: HVD | H137: 10 | I137: 10 | J137: 15 | M137: 20 | U137: 12 | V137: 10 | Z137: 15 | BB137: 92
A138: 136 | B138: BOUGLAINVAL | C138: GOLLION Stephane | D138: 7 | E138: HAS | G138: 10 | M138: 16 | P138: 10 | T138: 10 | V138: 10 | X138: 10 | Y138: 25 | BB138: 91
A139: 137 | B139: BOUGLAINVAL | C139: DENEFF Anne | D139: 8 | E139: FAS | F139: 10 | G139: 15 | L139: 10 | M139: 15 | Q139: 10 | U139: 10 | V139: 10 | Y139: 10 | BB139: 90
A140: 138 | B140: CRECY- COUVE | C140: LE FLOHIC Bruno | D140: 8 | E140: HVD | H140: 15 | I140: 15 | K140: 10 | M140: 10 | N140: 10 | P140: 10 | Q140: 10 | X140: 10 | BB140: 90
A141: 139 | B141: CRECY- COUVE | C141: LHEMERY Mathieu | D141: 5 | E141: HAS | G141: 15 | H141: 20 | K141: 25 | N141: 10 | X141: 20 | BB141: 90
A142: 140 | B142: LURAY | C142: MAZAS Pascal | D142: 9 | E142: HVD | F142: 10 | I142: 10 | K142: 10 | M142: 10 | N142: 10 | P142: 10 | U142: 10 | X142: 10 | Z142: 10 | BB142: 90
A143: 141 | B143: VICHERES | C143: EGGER Ludovic | D143: 5 | E143: HAD | H143: 15 | N143: 30 | R143: 15 | W143: 10 | Y143: 20 | BB143: 90
A144: 142 | B144: VICHERES | C144: RIQUET André | D144: 8 | E144: HVS | F144: 10 | G144: 10 | M144: 10 | P144: 10 | R144: 14 | T144: 10 | W144: 16 | Z144: 10 | BB144: 90
A145: 143 | B145: CRECY- COUVE | C145: LOPES Carlos | D145: 7 | E145: HAS | H145: 15 | M145: 12 | T145: 12 | V145: 10 | W145: 15 | X145: 10 | Z145: 15 | BB145: 89
A146: 144 | B146: BOUGLAINVAL | C146: ESLAN Pierre | D146: 8 | E146: HVD | I146: 10 | J146: 12 | K146: 10 | N146: 10 | T146: 15 | U146: 10 | W146: 10 | X146: 10 | BB146: 87
A147: 145 | B147: CHALLET-BAILLEAU L'EVEQUE | C147: IMPERIALE Claude | D147: 8 | E147: HVS | G147: 10 | L147: 12 | N147: 10 | P147: 10 | Q147: 15 | T147: 10 | V147: 10 | Y147: 10 | BB147: 87
A148: 146 | B148: VICHERES | C148: PASQUET Sylvie | D148: 6 | E148: FVS | G148: 10 | M148: 15 | O148: 25 | P148: 10 | R148: 10 | W148: 16 | BB148: 86
A149: 147 | B149: CHALLET-BAILLEAU L'EVEQUE | C149: DEMONCAY Florence | D149: 6 | E149: FAS | F149: 10 | I149: 10 | L149: 15 | O149: 30 | P149: 10 | V149: 10 | BB149: 85
A150: 148 | B150: VICHERES | C150: POIRIER Anthony | D150: 6 | E150: HAS | N150: 18 | P150: 22 | T150: 10 | U150: 15 | X150: 10 | Z150: 10 | BB150: 85
A151: 149 | B151: BOULES CLUB CLOYSIEN | C151: GERARD MARINE | D151: 6 | E151: FAS | J151: 22 | L151: 15 | O151: 15 | P151: 10 | T151: 12 | U151: 10 | BB151: 84
A152: 150 | B152: BOULES CLUB CLOYSIEN | C152: LALLIOT Priscilla | D152: 7 | E152: FAS | H152: 10 | K152: 10 | O152: 22 | P152: 10 | R152: 10 | T152: 12 | Y152: 10 | BB152: 84
A153: 151 | B153: CHARPONT | C153: PERRIN Cyril | D153: 6 | E153: HAD | F153: 14 | G153: 10 | K153: 30 | V153: 10 | X153: 10 | Y153: 10 | BB153: 84
A154: 152 | B154: LURAY | C154: LAVERGNE Alain | D154: 8 | E154: HVS | F154: 12 | I154: 12 | K154: 10 | M154: 10 | Q154: 10 | T154: 10 | V154: 10 | Z154: 10 | BB154: 84
A155: 153 | B155: BLEVY MAILLEBOIS | C155: MARTIN Gaëtan | D155: 6 | E155: HAS | H155: 10 | N155: 10 | T155: 12 | U155: 30 | V155: 10 | Z155: 10 | BB155: 82
A156: 154 | B156: BOUGLAINVAL | C156: MEHANECHE Roger | D156: 8 | E156: HVS | F156: 10 | G156: 10 | I156: 12 | K156: 10 | V156: 10 | X156: 10 | Y156: 10 | Z156: 10 | BB156: 82
A157: 155 | B157: LURAY | C157: SORTAIS Guy | D157: 8 | E157: HVS | F157: 12 | H157: 10 | K157: 10 | N157: 10 | Q157: 10 | T157: 10 | U157: 10 | Z157: 10 | BB157: 82
A158: 156 | B158: VICHERES | C158: MENAGER Antoine | D158: 6 | E158: HAS | N158: 18 | P158: 22 | R158: 12 | T158: 10 | X158: 10 | Z158: 10 | BB158: 82
A159: 157 | B159: CRECY- COUVE | C159: BUCHET Gwendal | D159: 6 | E159: HJD | H159: 15 | N159: 10 | Q159: 10 | U159: 10 | X159: 20 | Y159: 16 | BB159: 81
A160: 158 | B160: BOUGLAINVAL | C160: DENEFF Estéban | D160: 7 | E160: HJS | F160: 10 | G160: 10 | L160: 15 | M160: 15 | Q160: 10 | U160: 10 | V160: 10 | BB160: 80
A161: 159 | B161: BOULES CLUB CLOYSIEN | C161: GAUGUIN Alain | D161: 6 | E161: HAS | N161: 10 | V161: 20 | W161: 20 | X161: 10 | Y161: 10 | Z161: 10 | BB161: 80
A162: 160 | B162: CRECY- COUVE | C162: SAULU Christophe | D162: 5 | E162: HAS | F162: 25 | K162: 25 | N162: 10 | U162: 10 | X162: 10 | BB162: 80
A163: 161 | B163: LURAY | C163: GUYON Thierry | D163: 5 | E163: HVS | G163: 10 | I163: 20 | L163: 22 | U163: 10 | X163: 18 | BB163: 80
A164: 162 | B164: LURAY | C164: LARUE Franck | D164: 8 | E164: HVS | F164: 10 | I164: 10 | K164: 10 | N164: 10 | Q164: 10 | U164: 10 | X164: 10 | Z164: 10 | BB164: 80
A165: 163 | B165: LURAY | C165: PERCHER Patrick | D165: 7 | E165: HVS | G165: 10 | I165: 10 | K165: 10 | M165: 20 | Q165: 10 | V165: 10 | X165: 10 | BB165: 80
A166: 164 | B166: VICHERES | C166: CAILLON Jérome | D166: 7 | E166: HAS | F166: 10 | G166: 10 | K166: 10 | R166: 15 | T166: 10 | V166: 10 | X166: 15 | BB166: 80
A167: 165 | B167: VICHERES | C167: HEUZE Nans | D167: 6 | E167: HAS | N167: 18 | P167: 20 | R167: 12 | T167: 10 | X167: 10 | Z167: 10 | BB167: 80
A168: 166 | B168: BOUGLAINVAL | C168: MANIEZ Hugo | D168: 6 | E168: HAS | H168: 10 | I168: 10 | U168: 10 | W168: 25 | X168: 10 | Y168: 14 | BB168: 79
A169: 167 | B169: CHARPONT | C169: SRIPRAMONG Maitri | D169: 7 | E169: HVS | F169: 12 | G169: 10 | H169: 10 | K169: 15 | M169: 12 | N169: 10 | P169: 10 | BB169: 79
A170: 168 | B170: VICHERES | C170: DORDOIGNE Jérome | D170: 5 | E170: HAS | F170: 12 | M170: 15 | R170: 30 | V170: 10 | W170: 12 | BB170: 79
A171: 169 | B171: CHEMINOTS | C171: HIRIEL Fabrice | D171: 5 | E171: HAS | F171: 10 | U171: 16 | V171: 30 | Y171: 12 | Z171: 10 | BB171: 78
A172: 170 | B172: CHEMINOTS | C172: MOREAU Maxime | D172: 5 | E172: HAS | J172: 10 | U172: 16 | V172: 30 | Y172: 12 | Z172: 10 | BB172: 78
A173: 171 | B173: CRECY- COUVE | C173: BEFFROY Daniel | D173: 6 | E173: HVD | F173: 10 | M173: 20 | U173: 12 | V173: 10 | Y173: 10 | Z173: 16 | BB173: 78
A174: 172 | B174: LURAY | C174: NICHAU Gerard | D174: 6 | E174: HVD | I174: 20 | K174: 10 | N174: 12 | Q174: 10 | U174: 10 | Z174: 16 | BB174: 78
A175: 173 | B175: SAINT ELIPH | C175: GAGNEBIEN Boris | D175: 7 | E175: HAS | F175: 10 | H175: 10 | I175: 10 | P175: 12 | T175: 14 | X175: 12 | Z175: 10 | BB175: 78
A176: 174 | B176: VICHERES | C176: BELT Alban | D176: 5 | E176: HAD | H176: 18 | M176: 30 | N176: 10 | T176: 10 | W176: 10 | BB176: 78
A177: 175 | B177: BOUGLAINVAL | C177: BOILLOD Sylvain | D177: 7 | E177: HVS | G177: 10 | K177: 12 | N177: 10 | Q177: 10 | U177: 15 | X177: 10 | Y177: 10 | BB177: 77
A178: 176 | B178: BOULES CLUB CLOYSIEN | C178: CHAUVEAU Denis | D178: 4 | E178: HVS | J178: 25 | P178: 30 | V178: 12 | X178: 10 | BB178: 77
A179: 177 | B179: BOULES CLUB CLOYSIEN | C179: TOURNAY Quentin | D179: 6 | E179: HAS | J179: 10 | L179: 15 | N179: 10 | P179: 10 | T179: 22 | U179: 10 | BB179: 77
A180: 178 | B180: CHARPONT | C180: CASSAGNABERE Franck | D180: 7 | E180: HVS | H180: 10 | I180: 10 | K180: 10 | Q180: 15 | T180: 10 | V180: 10 | Z180: 12 | BB180: 77
A181: 179 | B181: CHARPONT | C181: PRESTVOINE Mickael | D181: 7 | E181: HAS | I181: 15 | P181: 10 | U181: 10 | V181: 10 | X181: 10 | Y181: 10 | Z181: 12 | BB181: 77
A182: 180 | B182: CRECY- COUVE | C182: COUTANCE Martine | D182: 6 | E182: FVD | F182: 10 | M182: 20 | U182: 12 | V182: 10 | Y182: 10 | Z182: 15 | BB182: 77
A183: 181 | B183: CRECY- COUVE | C183: ELIE Christine | D183: 6 | E183: FVD | I183: 15 | U183: 12 | V183: 10 | X183: 10 | Y183: 15 | Z183: 15 | BB183: 77
A184: 182 | B184: SAINT GEORGES MOTEL | C184: RANDRIANTAHINA Roger | D184: 6 | E184: HV | K184: 15 | N184: 10 | Q184: 12 | U184: 10 | X184: 15 | Z184: 15 | BB184: 77
A185: 183 | B185: BOUGLAINVAL | C185: POLVE Jacques | D185: 7 | E185: HVD | F185: 10 | G185: 10 | K185: 10 | M185: 16 | T185: 10 | X185: 10 | Y185: 10 | BB185: 76
A186: 184 | B186: BONNEVAL | C186: LACOSTE Phillippe | D186: 6 | E186: HVD | J186: 15 | P186: 10 | R186: 15 | U186: 10 | W186: 15 | Y186: 10 | BB186: 75
A187: 185 | B187: BOULES CLUB CLOYSIEN | C187: LALLIOT Manon | D187: 6 | E187: FAS | H187: 10 | L187: 20 | O187: 15 | P187: 10 | V187: 10 | Y187: 10 | BB187: 75
A188: 186 | B188: CHARPONT | C188: NOVEL Jean François | D188: 7 | E188: HVD | F188: 10 | I188: 10 | M188: 10 | R188: 10 | V188: 10 | X188: 10 | Z188: 15 | BB188: 75
A189: 187 | B189: VICHERES | C189: DUBILLOT Théo | D189: 4 | E189: HAS | H189: 25 | N189: 10 | U189: 15 | Z189: 25 | BB189: 75
A190: 188 | B190: VICHERES | C190: SEDILLOT-BUISSON Mael | D190: 6 | E190: HJS | H190: 10 | I190: 10 | K190: 10 | M190: 15 | N190: 15 | P190: 15 | BB190: 75
A191: 189 | B191: CHARPONT | C191: MAILLARD Guy | D191: 7 | E191: HVS | H191: 12 | I191: 10 | K191: 10 | N191: 10 | Q191: 10 | U191: 10 | X191: 12 | BB191: 74
A192: 190 | B192: CHARPONT | C192: ONDO Jean-Hilaire | D192: 7 | E192: HVD | I192: 10 | K192: 10 | N192: 10 | T192: 10 | V192: 12 | X192: 10 | Z192: 12 | BB192: 74
A193: 191 | B193: LURAY | C193: GOSSE Amandine | D193: 6 | E193: FAD | F193: 15 | H193: 12 | K193: 12 | U193: 15 | X193: 10 | Z193: 10 | BB193: 74
A194: 192 | B194: SAINT ELIPH | C194: LELONG Lilian | D194: 6 | E194: HAD | J194: 12 | K194: 20 | N194: 12 | T194: 10 | X194: 10 | Z194: 10 | BB194: 74
A195: 193 | B195: SAINT GEORGES MOTEL | C195: NGAMBE Guy | D195: =COUNTIF(F195:BA195,">1") -> 6 | E195: HV | K195: 15 | N195: 10 | Q195: 12 | U195: 10 | V195: 12 | X195: 15 | BB195: =SUM(F195:BA195) -> 74
A196: 194 | B196: SAINT GEORGES MOTEL | C196: RUELLE Dominique | D196: 6 | E196: HV | H196: 10 | Q196: 12 | U196: 12 | X196: 15 | Y196: 10 | Z196: 15 | BB196: 74
A197: 195 | B197: BOUGLAINVAL | C197: FRESNEDA Angelo | D197: 6 | E197: HVD | G197: 10 | I197: 10 | L197: 10 | U197: 10 | V197: 22 | Y197: 10 | BB197: 72
A198: 196 | B198: BOUGLAINVAL | C198: GESTIN Emmanuelle | D198: 6 | E198: FAD | I198: 10 | L198: 10 | O198: 20 | Q198: 12 | V198: 10 | Y198: 10 | BB198: 72
A199: 197 | B199: BOUGLAINVAL | C199: GESTIN Jean Philippe | D199: 6 | E199: HVD | I199: 10 | L199: 10 | N199: 10 | U199: 10 | V199: 22 | Y199: 10 | BB199: 72
A200: 198 | B200: BOUGLAINVAL | C200: RANVIER Marcel | D200: 7 | E200: HVD | G200: 10 | I200: 10 | J200: 12 | K200: 10 | Q200: 10 | U200: 10 | X200: 10 | BB200: 72
... 429 more rows

Sheet classement club
C1: points club | D1: nombre de licenciés club | E1: Index coul
A2: 1 | B2: Luray | C2: =SUMIF(Club!BC3:BC662,12,Club!BB3:BB662) -> 5,372 | D2: =COUNTIF(Club!BC3:BC662,12) -> 59 | E2: 47 | F2: =NumCouleur(#REF!) ->  | H2: Total de licenciés | I2: =SUM(D2:D18) -> 627
A3: 2 | B3: Charpont | C3: =SUMIF(Club!BC3:BC662,6,Club!BB3:BB662) -> 4,756 | D3: =COUNTIF(Club!BC3:BC662,6) -> 82 | E3: 50 | F3: =NumCouleur(B2) ->  | H3: Total de points | I3: =SUM(C2:C18) -> 34,946
A4: 3 | B4: Crécy Couvé | C4: =SUMIF(Club!BC3:BC662,9,Club!BB3:BB662) -> 4,321 | D4: =COUNTIF(Club!BC3:BC662,9) -> 48 | E4: 5 | F4: =NumCouleur(B4) -> 
A5: 4 | B5: Bouglainval | C5: =SUMIF(Club!BC3:BC662,4,Club!BB3:BB662) -> 4,304 | D5: =COUNTIF(Club!BC3:BC662,4) -> 60 | E5: 6 | F5: =NumCouleur(B5) -> 
A6: 5 | B6: Vichères | C6: =SUMIF(Club!BC3:BC662,15,Club!BB3:BB662) -> 4,018 | D6: =COUNTIF(Club!BC3:BC662,15) -> 46 | E6: 43 | F6: =NumCouleur(B6) -> 
A7: 6 | B7: Boules Club Cloysien | C7: =SUMIF(Club!BC3:BC662,17,Club!BB3:BB662) -> 2,322 | D7: =COUNTIF(Club!BC4:BC662,17) -> 35 | E7: 40 | F7: =NumCouleur(B7) -> 
A8: 7 | B8: Blévy-Maillebois | C8: =SUMIF(Club!BC3:BC662,2,Club!BB3:BB662) -> 1,812 | D8: =COUNTIF(Club!BC3:BC662,2) -> 33 | E8: 14 | F8: =NumCouleur(B8) -> 
A9: 8 | B9: Challet Bailleau l'Evêque | C9: =SUMIF(Club!BC3:BC662,5,Club!BB3:BB662) -> 1,554 | D9: =COUNTIF(Club!BC3:BC662,5) -> 34 | E9: 45 | F9: =NumCouleur(B9) -> 
A10: 9 | B10: St Georges Motel | C10: =SUMIF(Club!BC3:BC662,14,Club!BB3:BB662) -> 1,529 | D10: =COUNTIF(Club!BC3:BC662,14) -> 50 | E10: 48 | F10: =NumCouleur(B10) -> 
A11: 10 | B11: St Eliph | C11: =SUMIF(Club!BC3:BC662,13,Club!BB3:BB662) -> 1,296 | D11: =COUNTIF(Club!BC4:BC663,13) -> 26 | E11: 7 | F11: =NumCouleur(B11) -> 
A12: 11 | B12: La Gauloise | C12: =SUMIF(Club!BC3:BC662,11,Club!BB3:BB662) -> 952 | D12: =COUNTIF(Club!BC3:BC662,11) -> 23 | E12: 3 | F12: =NumCouleur(B12) -> 
A13: 12 | B13: Yèvres | C13: =SUMIF(Club!BC3:BC662,16,Club!BB3:BB662) -> 660 | D13: =COUNTIF(Club!BC3:BC662,16) -> 27 | E13: 33 | F13: =NumCouleur(B13) -> 
A14: 13 | B14: Gas | C14: =SUMIF(Club!BC3:BC662,10,Club!BB3:BB662) -> 612 | D14: =COUNTIF(Club!BC3:BC662,10) -> 23 | E14: 22 | F14: =NumCouleur(B14) -> 
A15: 14 | B15: Chuisnes | C15: =SUMIF(Club!BC3:BC662,8,Club!BB3:BB662) -> 563 | D15: =COUNTIF(Club!BC3:BC662,8) -> 22 | E15: 19 | F15: =NumCouleur(B15) -> 
A16: 15 | B16: Bonneval | C16: =SUMIF(Club!BC3:BC662,3,Club!BB3:BB662) -> 531 | D16: =COUNTIF(Club!BC3:BC662,3) -> 18 | E16: 37 | F16: =NumCouleur(B16) -> 
A17: 16 | B17: Cheminots | C17: =SUMIF(Club!BC3:BC662,7,Club!BB3:BB662) -> 344 | D17: =COUNTIF(Club!BC3:BC662,7) -> 41

Sheet Code couleur (hidden)
G1: 10
G2: 10
E3: =[1]!no_couleur(D3) ->  | G3: 12 | H3: =SUM(G1:G3) -> 32 | I3: 3 | J3: =H3*I3 -> 96
G4: 12 | J4: 0
B5: =NumCouleur(D5) ->  | G5: 10 | J5: 0
G6: 10 | J6: 0
G7: 10 | J7: 0
E8: =+'classement club'!#REF! ->  | G8: 10 | J8: 0
E9: =+'classement club'!C2 -> 5,372 | G9: 10 | J9: 0
E10: =+'classement club'!C4 -> 4,321 | G10: 25 | H10: =SUM(G4:G10) -> 87 | I10: 3 | J10: =H10*I10 -> 261
E11: =+'classement club'!C5 -> 4,304 | G11: 15 | J11: =H11*I11 -> 0
E12: =+'classement club'!C6 -> 4,018 | G12: 15 | J12: 0
E13: =+'classement club'!C7 -> 2,322 | G13: 10 | J13: 0
E14: =+'classement club'!C8 -> 1,812 | G14: 10 | J14: 0
E15: =+'classement club'!C9 -> 1,554 | G15: 10 | J15: 0
E16: =+'classement club'!C10 -> 1,529 | G16: 10 | J16: 0
E17: =+'classement club'!C11 -> 1,296 | G17: 20 | J17: 0
E18: =+'classement club'!C12 -> 952 | G18: 10 | J18: 0
E19: =+'classement club'!C13 -> 660 | G19: 20
E20: ='classement club'!C14 -> 612 | G20: 14 | H20: =SUM(G11:G20) -> 134 | I20: 3 | J20: =H20*I20 -> 402
E21: =+'classement club'!C15 -> 563 | G21: 16 | J21: =H21*I21 -> 0
E22: =+'classement club'!C16 -> 531 | G22: 10 | J22: 0
E23: ='classement club'!C17 -> 344 | G23: 10 | J23: 0
G24: 10 | J24: 0
G25: 15 | J25: 0
G26: 10 | J26: 0
E27: =SUM(E8:E23) ->  | F27: =F30+F29+F31 -> 51585 | G27: 15 | J27: 0
G28: 10 | J28: 0
F29: 50665 | G29: 10 | H29: =SUM(G21:G29) -> 106 | I29: 3 | J29: 318
F30: 920 | G30: 22
F31: 0 | G31: 12
G32: 15
F33: =F34*F35 -> 2211 | G33: 12
F34: 3 | G34: 12
F35: 737 | G35: 12
G36: 10
F37: =SUM(G1:G60) -> 687 | G37: 10
G38: 10
G39: 10
G40: 10
G41: 10
G42: 10
G43: 10
G44: 10
G45: 10
G46: 10
G47: 30
G48: 15
G49: 18
G50: 10
G51: 10
G52: 10
G53: 10
G54: 10
G55: 10
G56: 10
